Workbook

Sheet Sheet1 (hidden)
D1: %
D2: 0.001
D3: 0.002
D4: 0.003
D5: 0.004
D6: 0.005
D7: 0.006
D8: 0.007
D9: 0.008
D10: 0.009
D11: 0.01
D12: 0.011
D13: 0.012
D14: 0.013
D15: 0.014
D16: 0.015
D17: 0.016
D18: 0.017
D19: 0.018
D20: 0.019
D21: 0.02
D22: 0.021
D23: 0.022
D24: 0.023
D25: 0.024
D26: 0.025
D27: 0.026
D28: 0.027
D29: 0.028
D30: 0.029
D31: 0.03
D32: 0.031
D33: 0.032
D34: 0.033
D35: 0.034
D36: 0.035
D37: 0.036
D38: 0.037
D39: 0.038
D40: 0.039
D41: 0.04
D42: 0.041
D43: 0.042
D44: 0.043
D45: 0.044
D46: 0.045
D47: 0.046
D48: 0.047
D49: 0.048
D50: 0.049
D51: 0.05
D52: 0.051
D53: 0.052
D54: 0.053
D55: 0.054
D56: 0.055
D57: 0.056
D58: 0.057
D59: 0.058
D60: 0.059
D61: 0.06
D62: 0.061
D63: 0.062
D64: 0.063
D65: 0.064
D66: 0.065
D67: 0.066
D68: 0.067
D69: 0.068
D70: 0.069
D71: 0.07
D72: 0.071
D73: 0.072
D74: 0.073
D75: 0.074
D76: 0.075
D77: 0.076
D78: 0.077
D79: 0.078
D80: 0.079
D81: 0.08
D82: 0.081
D83: 0.082
D84: 0.083
D85: 0.084
D86: 0.085
D87: 0.086
D88: 0.087
D89: 0.088
D90: 0.089
D91: 0.09
D92: 0.091
D93: 0.092
D94: 0.093
D95: 0.094
D96: 0.095
D97: 0.096
D98: 0.097
D99: 0.098
D100: 0.099
D101: 0.1
D102: 0.101
D103: 0.102
D104: 0.103
D105: 0.104
D106: 0.105
D107: 0.106
D108: 0.107
D109: 0.108
D110: 0.109
D111: 0.11
D112: 0.111
D113: 0.112
D114: 0.113
D115: 0.114
D116: 0.115
D117: 0.116
D118: 0.117
D119: 0.118
D120: 0.119
D121: 0.12
D122: 0.121
D123: 0.122
D124: 0.123
D125: 0.124
D126: 0.125
D127: 0.126
D128: 0.127
D129: 0.128
D130: 0.129
D131: 0.13
D132: 0.131
D133: 0.132
D134: 0.133
D135: 0.134
D136: 0.135
D137: 0.136
D138: 0.137
D139: 0.138
D140: 0.139
D141: 0.14
D142: 0.141
D143: 0.142
D144: 0.143
D145: 0.144
D146: 0.145
D147: 0.146
D148: 0.147
D149: 0.148
D150: 0.149
D151: 0.15
D152: 0.151
D153: 0.152
D154: 0.153
D155: 0.154
D156: 0.155
D157: 0.156
D158: 0.157
D159: 0.158
D160: 0.159
D161: 0.16
D162: 0.161
D163: 0.162
D164: 0.163
D165: 0.164
D166: 0.165
D167: 0.166
D168: 0.167
D169: 0.168
D170: 0.169
D171: 0.17
D172: 0.171
D173: 0.172
D174: 0.173
D175: 0.174
D176: 0.175
D177: 0.176
D178: 0.177
D179: 0.178
D180: 0.179
D181: 0.18
D182: 0.181
D183: 0.182
D184: 0.183
D185: 0.184
D186: 0.185
D187: 0.186
D188: 0.187
D189: 0.188
D190: 0.189
D191: 0.19
D192: 0.191
D193: 0.192
D194: 0.193
D195: 0.194
D196: 0.195
D197: 0.196
D198: 0.197
D199: 0.198
D200: 0.199
... 301 more rows

Sheet STEP 1 - User Worksheet
B2: PLEASE READ THE FOLLOWING INSTRUCTIONS BEFORE PROCEEDING:
B3: 1.) Populate the "Assets" section with your personal savings information. This information will automatically populate the "Retirement Inputs" bucket which feeds the Calculator in Step 2. The calculator provides the flexibility to enter as a single user, or jointly, where appropriate.
B4: 2.) Populate the "Expenses" section with all expenses. This will be used in the calculation for income required in retirement. If you are uncertain about future expenses, users should consider all recurring and ad-hoc expenses. If still unknown, please put an estimate in OTHER.
B5: 3.) Select the appropriate effective income tax rate (H26) using the Federal Income Tax information provided. Adjust the average annual inflation rate as needed.
B7: ASSETS | G7: EXPENSES | J7: 2021 Federal Income Tax Brackets
C10: USER 1 ASSETS | D10: USER 2 ASSETS | E10: JOINT USERS ASSETS | G10: EXPENSES ON AN ANNUAL BASIS | J10: Marginal Rate | K10: For Individuals | M10: Pay | N10: Effective Rate based on bottom of tax bracket | O10: For Married Filing Jointly | Q10: Pay | R10: Effective Rate based on bottom of tax bracket
B11: LIQUID ASSETS | C11: =SUM(C12:C16) -> 0 | D11: =SUM(D12:D16) -> 0 | E11: =SUM(E12:E16) -> 0 | G11: MORTGAGE | K11: Bottom Bracket | L11: Top Bracket | O11: Bottom Bracket | P11: Top Bracket
B12: CASH (checking/savings) | G12: RENT | J12: 0.1 | K12: 0 | L12: 9950 | M12: 0 | N12: 0 | O12: 0 | P12: 19900 | Q12: 0 | R12: 0
B13: MONEY MARKET ACCOUNTS | G13: HEALTHCARE | J13: 0.12 | K13: 9951 | L13: 40525 | M13: 995 | N13: =M13/K13 -> 0.09998995076 | O13: 19901 | P13: 81050 | Q13: 1990 | R13: =Q13/O13 -> 0.09999497513
B14: TAX REFUND | G14: LONG-TERM HEALTHCARE | J14: 0.22 | K14: 40526 | L14: 86375 | M14: 4664 | N14: =M14/K14 -> 0.1150866111 | O14: 81051 | P14: 172750 | Q14: 9328 | R14: =Q14/O14 -> 0.115088031
B15: GOLD/JEWELRY/COINS | G15: RENTERS' INSURANCE | J15: 0.24 | K15: 86376 | L15: 164925 | M15: 14751 | N15: 0.1707766046 | O15: 172751 | P15: 329850 | Q15: 29502 | R15: =Q15/O15 -> 0.1707775932
B16: OTHER LIQUID ASSETS | G16: LIFE INSURANCE | J16: 0.32 | K16: 164926 | L16: 209425 | M16: 33603 | N16: =M16/K16 -> 0.2037459224 | O16: 329851 | P16: 418850 | Q16: 67206 | R16: =Q16/O16 -> 0.2037465401
B17: RETIREMENT FUNDS | C17: =SUM(C18:C29) -> 0 | D17: =SUM(D18:D29) -> 0 | E17: =SUM(E18:E29) -> 0 | G17: UTILITIES (water, electric) | J17: 0.35 | K17: 209426 | L17: 523600 | M17: 47843 | N17: =M17/K17 -> 0.2284482347 | O17: 418851 | P17: 628300 | Q17: 95686 | R17: 0.2284487801
B18: TRADITIONAL IRA | G18: ENTERTAINMENT/TRAVEL | J18: 0.37 | K18: 523601 | L18: 523601 | M18: 157804.25 | N18: =M18/K18 -> 0.3013826368 | O18: 628301 | P18: 628301 | Q18: 168993.5 | R18: 0.2689690133
B19: SEP IRA | G19: FOOD (groceries/dining out) | J19: Source: Internal Revenue Service
B20: ROTH IRA | G20: AUTO/HOME INSURANCE
B21: SIMPLE IRA | G21: PROPERTY TAXES
B22: SELF-DIRECTED IRA | G22: MAINTENANCE SERVICES
B23: OTHER IRA | G23: INCOME TAXES
B24: PENSION: DEFINED CONTRIBUTION | G24: HOA FEES
B25: PENSION: DEFINED BENEFIT | G25: OTHER
B26: 401(K) | G26: SUMMARY OF EXPENSES | H26: =SUM(H11:H25) -> 0
B27: 403(B)
B28: ANNUITIES
B29: OTHER RETIREMENT FUNDS
B30: REAL ESTATE | C30: =SUM(C31:C34) -> 0 | D30: =SUM(D31:D34) -> 0 | E30: =SUM(E31:E34) -> 0
B31: RENTAL PROPERTY
B32: COMMERCIAL PROPERTY
B33: INDUSTRIAL PROPERTY
B34: LAND
B35: PROFIT SHARING
B36: DEFERRED COMPENSATION | G36: RETIREMENT INPUTS
B37: INVESTMENT PORTFOLIO | C37: =SUM(C38:C41) -> 0 | D37: =SUM(D38:D41) -> 0 | E37: =SUM(E38:E41) -> 0
B38: BROKERAGE ACCOUNT
B39: MONEY MARKET ACCOUNTS | G39: LIQUID ASSETS | H39: =C11+D11+E11 -> 0
B40: CERTIFICATES OF DEPOSIT | G40: RETIREMENT FUNDS | H40: =C17+D17+E17 -> 0
B41: TREASURY BILLS | G41: REAL ESTATE | H41: =C30+D30+E30 -> 0
B42: OTHER | C42: =SUM(C43:C46) -> 0 | D42: =SUM(D43:D46) -> 0 | E42: =SUM(E43:E46) -> 0 | G42: PROFIT SHARING | H42: =C35+D35+E35 -> 0
B43: INHERITANCE | G43: DEFERRED COMPENSATION | H43: =C36+D36+E36 -> 0
B44: ART & COLLECTIBLES | G44: INVESTMENT PORTFOLIO | H44: =C37+D37+E37 -> 0
B45: BOATS/CARS | G45: OTHER | H45: =C42+D42+E42 -> 0
B46: OTHER | D46: 0 | E46: 0 | G46: TOTAL | H46: =SUM(H39:H45) -> 0
B47: SOCIAL SECURITY - ANNUAL
B48: TOTAL | C48: =C11+C17+C30+C35+C36+C37+C42 -> 0 | D48: =D11+D17+D30+D35+D36+D37+D42 -> 0 | E48: =E11+E17+E30+E37+E42 -> 0 | G48: SOCIAL SECURITY - ANNUAL | H48: =C47+D47 -> 0

Sheet STEP 2 - Calculator
B2: PLEASE READ THE FOLLOWING INSTRUCTIONS BEFORE PROCEEDING:
B3: STOP: Please fill out the USER WORKSHEET prior to completing this calculator; data will autopopulate in this calculator.
B4: Constant Dollars: This analysis is done in real dollars, which adjusts for inflation. All income is based on today's dollars.
B6: All fillable data is highlighted in light green; please carefully review and fill in as appropriate. Use TAB or ENTER function on keyboard to scroll.
B7: 1.) Enter date of birth, expected retirement date, and life expectancy. In general, we use 90 years of age as a default however, users should consider their own personal family history.
B8: 2.) Select the approriate expected return for each of the asset classes listed below. Please visit the "Calculations" tab and "Key Terms & Definitions" tab for more information.
B9: 3.) Once all relevant information has been entered, the tool will calculate the amount you need to save monthly and yearly to reach your retirment goals. A negative number indicates that you have an excess of savings, while a positive number indicates that you need to increase savings.
B11: 4.) The text below in gold provides additional information and guidance.
B12: RETIREMENT INCOME CALCULATOR
B14: NAME
B15: TODAY'S DATE | C15: =TODAY() -> 2021-12-07
B17: TARGET ANNUAL INCOME IN RETIREMENT
B18: Target Annual Income in Retirement | C18: ='STEP 1 - User Worksheet'!H26 -> 0
B19: Anticipated Retirement Age | C19: 74
B21: IMPORTANT PERSONAL INFO | C21: Date of Birth | D21: Current Date | E21: Retirement Date | F21: Life Expectancy**
B22: Day | C22: 1 | D22: =DAY(C15) -> 7 | E22: 1 | F22: 1
B23: Month | C23: 6 | D23: =MONTH(C15) -> 12 | E23: 9 | F23: 4
B24: Year (use full year i.e. 1980, 2000, 2020) | C24: 1948 | D24: =YEAR(C15) -> 2021 | E24: =SUM(C19-D26)+D24 -> 2022 | F24: 2046
B25: Relevant Dates | C25: =DATE($C$24,$C$23,$C$22) -> 1948-06-01 | D25: =DATE($D$24,$D$23,$D$22) -> 2021-12-07 | E25: =DATE($E$24,$E$23,$E$22) -> 2022-09-01 | F25: =DATE($F$24,$F$23,$F$22) -> 2046-04-01
B26: Years from current age | D26: =$D$24-$C$24 -> 73 | E26: =$E$24-$D$24 -> 1 | F26: =$F$24-$D$24 -> 25
B27: Years in retirement | E27: =IF(OR(F$24,E$24<>0),F$24-E$24+1,0) -> 25
B28: ** Life expectancy is based on actuarial tables. Females and males that reach age 65 live to age 85.5 and 82.9 respectively. However, people in good health can live well into their 90s.
B30: RISK PROFILE
B31: More details about risk levels are available in the "Calculations" worksheet
B32: Liquid Assets
B33: Determine Risk Level (Conservative to Aggressive) | C33: 0 | D33: =VLOOKUP(C33,Calculations!$B$7:$C$18,2,FALSE) -> Cash
B34: Suggested Asset Allocation (based on risk level) | C34: Equity | D34: Bond | E34: Cash | F34: Expected Return
C35: =VLOOKUP($C33,Calculations!$B$7:$G$18,4,FALSE) -> 0 | D35: =VLOOKUP($C33,Calculations!$B$7:$G$18,5,FALSE) -> 0 | E35: =VLOOKUP($C33,Calculations!$B$7:$G$18,6,FALSE) -> 1 | F35: =VLOOKUP(C33,Calculations!$B$7:$M$19,11,FALSE) -> 0.005
B36: Retirement Funds
B37: Determine Risk Level (Conservative to Aggressive) | C37: 9 | D37: =VLOOKUP(C37,Calculations!$B$7:$C$18,2,FALSE) -> Higher Risk, Higher Potential Return
B38: Suggested Asset Allocation (based on risk level) | C38: Equity | D38: Bond | E38: Cash | F38: Expected Return
C39: =VLOOKUP($C37,Calculations!$B$7:$G$18,4,FALSE) -> 0.9 | D39: =VLOOKUP($C37,Calculations!$B$7:$G$18,5,FALSE) -> 0.1 | E39: =VLOOKUP($C37,Calculations!$B$7:$G$18,6,FALSE) -> 0 | F39: =VLOOKUP(C37,Calculations!$B$7:$M$19,11,FALSE) -> 0.0645
B40: Real Estate
B41: Expected Return | C41: 0.03 | D41: Please manually enter your expected rate of return for real estate.
B42: Profit Sharing
B43: Determine Risk Level (Conservative to Aggressive) | C43: 0 | D43: =VLOOKUP(C43,Calculations!$B$7:$C$18,2,FALSE) -> Cash
B44: Suggested Asset Allocation (based on risk level) | C44: Equity | D44: Bond | E44: Cash | F44: Expected Return
C45: =VLOOKUP($C43,Calculations!$B$7:$G$18,4,FALSE) -> 0 | D45: =VLOOKUP($C43,Calculations!$B$7:$G$18,5,FALSE) -> 0 | E45: =VLOOKUP($C43,Calculations!$B$7:$G$18,6,FALSE) -> 1 | F45: =VLOOKUP(C43,Calculations!$B$7:$M$19,11,FALSE) -> 0.005
B46: Deferred Compensation
B47: Determine Risk Level (Conservative to Aggressive) | C47: 0 | D47: =VLOOKUP(C47,Calculations!$B$7:$C$18,2,FALSE) -> Cash
B48: Suggested Asset Allocation (based on risk level) | C48: Equity | D48: Bond | E48: Cash | F48: Expected Return
C49: =VLOOKUP($C47,Calculations!$B$7:$G$18,4,FALSE) -> 0 | D49: =VLOOKUP($C47,Calculations!$B$7:$G$18,5,FALSE) -> 0 | E49: =VLOOKUP($C47,Calculations!$B$7:$G$18,6,FALSE) -> 1 | F49: =VLOOKUP(C47,Calculations!$B$7:$M$19,11,FALSE) -> 0.005
B50: Investment Portfolio
B51: Determine Risk Level (Conservative to Aggressive) | C51: 9 | D51: =VLOOKUP(C51,Calculations!$B$7:$C$18,2,FALSE) -> Higher Risk, Higher Potential Return
B52: Suggested Asset Allocation (based on risk level) | C52: Equity | D52: Bond | E52: Cash | F52: Expected Return
C53: =VLOOKUP($C51,Calculations!$B$7:$G$18,4,FALSE) -> 0.9 | D53: =VLOOKUP($C51,Calculations!$B$7:$G$18,5,FALSE) -> 0.1 | E53: =VLOOKUP($C51,Calculations!$B$7:$G$18,6,FALSE) -> 0 | F53: =VLOOKUP(C51,Calculations!$B$7:$M$19,11,FALSE) -> 0.0645
B54: Other
B55: Determine Risk Level (Conservative to Aggressive) | C55: 9 | D55: =VLOOKUP(C55,Calculations!$B$7:$C$18,2,FALSE) -> Higher Risk, Higher Potential Return
B56: Suggested Asset Allocation (based on risk level) | C56: Equity | D56: Bond | E56: Cash | F56: Expected Return
C57: =VLOOKUP($C55,Calculations!$B$7:$G$18,4,FALSE) -> 0.9 | D57: =VLOOKUP($C55,Calculations!$B$7:$G$18,5,FALSE) -> 0.1 | E57: =VLOOKUP($C55,Calculations!$B$7:$G$18,6,FALSE) -> 0 | F57: =VLOOKUP(C55,Calculations!$B$7:$M$19,11,FALSE) -> 0.0645
C59: Beginning Value | D59: Annual Contribution | E59: Pre-Retirement Rate of Return Based on Risk Profile | F59: Post-Retirement Rate of Return Based on Risk Profile | G59: Value at Retirement | H59: Estimated Annual Benefit
B60: ASSET TYPE
B61: Liquid Assets | C61: ='STEP 1 - User Worksheet'!H39 -> 0 | D61: 0 | E61: =F35 -> 0.005 | F61: =F35 -> 0.005 | G61: =($C61*(1+$E61)^$E$26)+FV($E61,$E$26,-$D61) -> 0 | H61: =IF(ISNA($G61),0,PMT($F61,($F$25-$E$25)/365.25,-$G61,0,1)) -> 0
B62: Retirement Funds | C62: ='STEP 1 - User Worksheet'!H40 -> 0 | D62: 0 | E62: =F39 -> 0.0645 | F62: =F39 -> 0.0645 | G62: =($C62*(1+$E62)^$E$26)+FV($E62,$E$26,-$D62) -> 0 | H62: =IF(ISNA($G62),0,PMT($F62,($F$25-$E$25)/365.25,-$G62,0,1)) -> 0
B63: Real Estate | C63: ='STEP 1 - User Worksheet'!H41 -> 0 | D63: 0 | E63: =C41 -> 0.03 | F63: =C41 -> 0.03 | G63: =($C63*(1+$E63)^$E$26)+FV($E63,$E$26,-$D63) -> 0 | H63: 0
B64: Profit Sharing | C64: ='STEP 1 - User Worksheet'!H42 -> 0 | D64: 0 | E64: =F45 -> 0.005 | F64: =F45 -> 0.005 | G64: 0 | H64: 0
B65: Deferred Compensation | C65: ='STEP 1 - User Worksheet'!H43 -> 0 | D65: 0 | E65: 0.005 | F65: 0.005 | G65: 0 | H65: 0
B66: Investment Portfolio | C66: ='STEP 1 - User Worksheet'!H44 -> 0 | D66: 0 | E66: =F53 -> 0.0645 | F66: =F53 -> 0.0645 | G66: 0 | H66: 0
B67: Social Security | H67: ='STEP 1 - User Worksheet'!H48 -> 0
B68: Other | C68: ='STEP 1 - User Worksheet'!H45 -> 0 | D68: 0 | E68: 0 | F68: 0.0645 | G68: =($C68*(1+$E68)^$E$26)+FV($E68,$E$26,-$D68) -> 0 | H68: =IF(ISNA($G68),0,PMT($F68,($F$25-$E$25)/365.25,-$G68,0,1)) -> 0
B69: Total | C69: =SUM(C61:C68) -> 0 | D69: =SUM(D61:D68) -> 0 | G69: =SUM(G61:G68) -> 0 | H69: =SUM(H61:H68) -> 0
B71: PERSONAL SAVINGS ANALYSIS
B72: Estimated Value of Savings at Retirement | C72: =SUM(G61:G68) -> 0
B73: Rate of Return Before Retirement Per Risk Profile | C73: =F39 -> 0.0645
B74: Estimated Annual Income based on current savings | C74: =SUM(H61:H68) -> 0 | D74: This includes your annual SS benefit.
B75: Based on current savings, accumulate addtl savings of | C75: =IF($C$18>=SUM(H61:H68),$C$18-SUM(H$61:H$68),0) -> 0
B76: Addtl Savings Needed To Achieve Retirement Inc. Goal | C76: =PV($C$73/12,E$27*12,-(C$75/12)) -> 0
B77: Total Sources of Income At Retirement + $ To Be Saved | C77: =SUM(C74:C75) -> 0
B78: Excess over Retirement Income | C78: =MAX(0,$C$77-$C$18) -> 0
B79: Value of Excess Income at Beginning of Retirement | C79: =PV($C$73/12,E27*12,-(C78/12)) -> 0
B81: NOMINAL TERMS REDUCTION
B82: Of your ANNUAL retirement income (see C68), how much is fixed in nominal terms (no increase w/inflation)? | D82: Please manually enter if applicable. This is typically pensions or annuities that don't increase with inflation.
B83: Number of years to be paid | C83: =E27 -> 25
B84: Today's value of total to be paid | C84: =C82*C83 -> 0
B85: Average annual inflation rate - See "Calculations" | C85: 0.02
B86: Today's value of "deflated" fixed income | C86: =PV(C85,C83,-C82) -> 0
B87: Inflation insurance needed | C87: =C84-C86 -> 0 | D87: This amount is reflected as a reduction in your excess assets at retirement.
B89: TOTAL NEEDED/(EXCESS) ASSETS AT RETIREMENT INCL. INFLATION INSURANCE | C89: =C87+C76-C79 -> 0
B91: MONTHLY & ANNUAL SAVINGS NEEDED/(EXCESS) TO MEET RETIREMENT INCOME GOAL
B92: Monthly Savings to Reach Retirement Income Goal | C92: =IF($E$26<=0,NA(),+$C$89/((((1+($E$62/12))^($E$26*12))-1)/($E$62/12))) -> 0
B93: Annual Savings to Reach Retirement Income Goal | C93: =C92*12 -> 0

Sheet Calculations
B3: HOW WE CALCULATE
I4: SUPPORTING RISK PROFILE DATA
B5: RISK PROFILE | I5: Average Return Per SBBI | L5: Expected Equity Return
E6: Equity | F6: Bond | G6: Cash | I6: Equity | J6: Bond | K6: Cash | M6: Liquid Assets
B7: 10 | C7: Highest Risk, Highest Potential Return | E7: 1 | F7: 0 | G7: 0 | I7: 0.07 | J7: 0.015 | K7: 0.005 | L7: =(E7*$I$7)+(F7*$J$7)+(G7*$K$7) -> 0.07 | M7: =(E18*$I$7)+(F18*$J$7)+(G18*$K$7) -> 0.005
B8: 9 | C8: Higher Risk, Higher Potential Return | E8: 0.9 | F8: 0.1 | G8: 0 | L8: =(E8*$I$7)+(F8*$J$7)+(G8*$K$7) -> 0.0645 | M8: =(E18*$I$7)+(F18*$J$7)+(G18*$K$7) -> 0.005
B9: 8 | C9: High Risk, High Potential Return | E9: 0.8 | F9: 0.2 | G9: 0 | L9: 0.059 | M9: =(E18*$I$7)+(F18*$J$7)+(G18*$K$7) -> 0.005
B10: 7 | C10: Risky | E10: 0.7 | F10: 0.3 | G10: 0 | L10: =(E10*$I$7)+(F10*$J$7)+(G10*$K$7) -> 0.0535 | M10: =(E18*$I$7)+(F18*$J$7)+(G18*$K$7) -> 0.005
B11: 6 | C11: Moderate | E11: 0.6 | F11: 0.4 | G11: 0 | L11: 0.048 | M11: =(E18*$I$7)+(F18*$J$7)+(G18*$K$7) -> 0.005
B12: 5 | C12: Balanced | E12: 0.5 | F12: 0.5 | G12: 0 | L12: 0.0425 | M12: =(E18*$I$7)+(F18*$J$7)+(G18*$K$7) -> 0.005
B13: 4 | C13: Conservative | E13: 0.4 | F13: 0.6 | G13: 0 | L13: 0.037 | M13: =(E18*$I$7)+(F18*$J$7)+(G18*$K$7) -> 0.005
B14: 3 | C14: Low Risk, Low Expected Return | E14: 0.3 | F14: 0.7 | G14: 0 | L14: 0.0315 | M14: =(E18*$I$7)+(F18*$J$7)+(G18*$K$7) -> 0.005
B15: 2 | C15: Lower Risk, Lower Expected Return | E15: 0.2 | F15: 0.8 | G15: 0 | L15: 0.026 | M15: =(E18*$I$7)+(F18*$J$7)+(G18*$K$7) -> 0.005
B16: 1 | C16: Lowest Risk, Lowest Expected Return | E16: 0.1 | F16: 0.9 | G16: 0 | L16: 0.0205 | M16: =(E18*$I$7)+(F18*$J$7)+(G18*$K$7) -> 0.005
B17: Bonds | E17: 0 | F17: 1 | G17: 0 | L17: 0.015 | M17: =(E18*$I$7)+(F18*$J$7)+(G18*$K$7) -> 0.005
B18: 0 | C18: Cash | E18: 0 | F18: 0 | G18: 1 | L18: 0.005 | M18: =(E18*$I$7)+(F18*$J$7)+(G18*$K$7) -> 0.005
L19: =(F19*$I$7)+(G19*$J$7)+(H19*$K$7) -> 0 | M19: =(E18*$I$7)+(F18*$J$7)+(G18*$K$7) -> 0.005
C21: RATE OF RETURN**
C22: Investment Type | D22: Asset Allocation | E22: Rate of Return | F22: Portfolio Return | G22: Asset Allocation | H22: Rate of Return | I22: Portfolio Return
D23: =D24+D28+D33+D35 -> 1 | F23: =F24+F28+F34 -> 0.0566 | G23: =G24+G28+G32+G34 -> 1 | I23: =I24+I28+I32+I34 -> 0.05093833333
C24: % in Equity | D24: 0.6 | E24: 0.073 | F24: =(D24*E24) -> 0.0438 | G24: 0.55 | H24: 0.07 | I24: =(G25*H25)+(G26*H26)+(G27*H27) -> 0.03868333333
C25: Large Cap Stocks | D25: =(D24*(1/3)) -> 0.2 | E25: 0.071 | G25: =(G24*(1/3)) -> 0.1833333333 | H25: 0.071
C26: Small Cap Stocks | D26: =(D24*(1/3)) -> 0.2 | E26: 0.09 | G26: =(G24*(1/3)) -> 0.1833333333 | H26: 0.09
C27: Global Equities | D27: =(D24*(1/3)) -> 0.2 | E27: 0.05 | G27: =(G24*(1/3)) -> 0.1833333333 | H27: 0.05
C28: % in Bonds | D28: 0.4 | E28: 0.032 | F28: =(D28*E28) -> 0.0128 | G28: 0.4 | H28: 0.03 | I28: =SUM(G29*H29)+(G30*H30)+(G31*H31) -> 0.0104
C29: Long-Term Corp. Bonds | D29: =(D28*(1/3)) -> 0.1333333333 | E29: 0.031 | G29: =(G28*(1/3)) -> 0.1333333333 | H29: 0.031
C30: Long-Term Govt. Bonds | D30: =(D28*(1/3)) -> 0.1333333333 | E30: 0.026 | G30: =(G28*(1/3)) -> 0.1333333333 | H30: 0.026
C31: Inter-Term Govt. Bonds | D31: =(D28*(1/3)) -> 0.1333333333 | E31: 0.021 | G31: =(G28*(1/3)) -> 0.1333333333 | H31: 0.021
C32: % Real Estate | E32: 0.0371 | G32: 0.05 | H32: 0.0371 | I32: =(G32*H32) -> 0.001855
C33: Case Shiller US Ntl Home Price Index | G33: =G32/1 -> 0.05 | H33: 0.0371
C34: % in Cash | D34: 0 | E34: 0.005 | G34: 0 | I34: =SUM(G35*H35) -> 0
C35: U.S. Treasury Bills | D35: =D34 -> 0 | E35: 0.005 | G35: =G34 -> 0 | H35: 0.005
C36: ** Inflation Adjusted Returns (Geometric Mean) USD
C37: Source: 2018 SBBI; Page 6-18. 1926 - 2017. Real Estate Returns; Case Shiller US National Home Price Index 1987 - 2019
C38: Source: Global Equity Returns 1900 - 2018. Summary Edition Credit Suisse Global Investment Returns Yearbook 2019
C41: ESTIMATED AVERAGE ANNUAL INFLATION RATE
C42: Asset Class | D42: Nominal Return | E42: Inflation Rate | F42: Real Return
C43: Stocks | D43: 0.102 | E43: 0.029 | F43: =D43-E43 -> 0.073
C44: Bonds | D44: 0.061 | E44: 0.029 | F44: =D44-E44 -> 0.032
C45: T-Bills | D45: 0.034 | E45: 0.029 | F45: =D45-E45 -> 0.005
C46: Real Estate | D46: 0.0371 | E46: 0.029 | F46: =D46-E46 -> 0.0081
C47: Real Return = Nominal Return - Inflation Rate. Polaris believes that real returns or real annual growth rate should be used when analyzing retirement plans.

Sheet Key Terms & Definitions
B2: KEY TERMS/DEFINITIONS
C4: No personal information is stored, saved or collected.
C5: CALCULATOR USAGE: This tool is intended to provide an estimate of the capital required to be saved to reach a user’s retirement income goal. This tool may help the user understand how their future savings will fluctuate based on various factors including, but not limited to, asset allocation, capital contributions, changing rates, years the user expects to save, and life expectancy. Please note: This tool also makes certain assumptions about return expectations. Investing in securities involves risk, and there is always the potential of losing money. Asset allocation and rebalancing do not ensure a profit or guarantee against loss. Investors should consider their long-term objectives and the risks associated with investing when interpreting this analysis. This analysis can be updated as often as needed however, an update every 18-24 months should be sufficient. Any time there is a change to one of the user inputs, the model should be updated to reflect the change.
C6: A WORD ABOUT RISK: Standard deviation is a measure of the amount of variation or dispersion of a set of values. A low standard deviation indicates that the values tend to be close to the mean of the set, while a high standard deviation indicates that the values are spread out over a wider range. Returns on investments can vary significantly from on year to the next. The following exhibit shows the standard deviation of a set of portfolios from 1926 – 2017.
C8: Portfolio | D8: Geometric Mean | E8: Arithmetic Mean | F8: Standard Deviation
C9: Asset Mix | D9: % | E9: % | F9: %
C10: 100% Large-Cap Stocks | D10: 10.3 | E10: 12.2 | F10: 19.7
C11: 90% Stocks / 10% Bonds | D11: 10 | E11: 11.5 | F11: 17.7
C12: 70% Stocks / 30% Bonds | D12: 9.3 | E12: 10.3 | F12: 14.1
C13: 50% Stocks / 50% Bonds | D13: 8.5 | E13: 9.1 | F13: 11.1
C14: 30% Stocks / 70% Bonds | D14: 7.5 | E14: 7.9 | F14: 9.2
C15: 10% Stocks / 90% Bonds | D15: 6.3 | E15: 6.7 | F15: 9.1
C16: 100% Long-Term Govt. Bonds | D16: 5.7 | E16: 6.1 | F16: 9.8
C18: ESTIMATED AVERAGE ANNUAL INFLATION RATE
C19: Asset Class | D19: Nominal Return | E19: Inflation Rate | F19: Real Return
C20: Stocks | D20: 0.102 | E20: 0.029 | F20: =D20-E20 -> 0.073
C21: Bonds | D21: 0.061 | E21: 0.029 | F21: =D21-E21 -> 0.032
C22: T-Bills | D22: 0.034 | E22: 0.029 | F22: =D22-E22 -> 0.005
C23: Real Estate | D23: 0.0371 | E23: 0.029 | F23: =D23-E23 -> 0.0081
C24: Real Return = Nominal Return - Inflation Rate. Polaris believes that real returns or real annual growth rate should be used when analyzing retirement plans.
C27: TERMS/DEFINITIONS
C28: ASSET TYPES: Asset types are defined in the User Worksheet. Please see below for more detailed descriptions.
C30: ASSET TYPES: 401 (k) 403 (b): 401(k) and 403(b) are two popular defined-contribution plans commonly used by companies and organizations to encourage their employees to save for retirement. A 403(b) plan is a retirement account for certain employees of public schools and tax-exempt organizations. Participants include teachers, school administrators, professors, government employees, nurses, doctors, and librarians. A 401(k) plan is a retirement savings plan offered by many American employers that has tax advantages to the saver. An employee who signs up for a 401(k) plan agrees to have a percentage of each paycheck paid directly into an investment account. The employer may match part or all of that contribution. The employee gets to choose among a number of investment options, usually mutual funds.
C34: ASSET TYPES: DEFERRED COMPENSATION: Deferred compensation is a portion of an employee's compensation that is set aside to be paid at a later date. In most cases, taxes on this income are deferred until it is paid out. Forms of deferred compensation include retirement plans, pension plans, and stock-option plans.
C36: ASSET TYPES: PENSION - DEFINED BENEFIT: A defined benefit plan promises a specified monthly benefit at retirement. The plan may state this promised benefit as an exact dollar amount, such as $100 per month at retirement. Or, more commonly, it may calculate a benefit through a plan formula that considers such factors as salary and service - for example, 1 percent of average salary for the last 5 years of employment for every year of service with an employer. The benefits in most traditional defined benefit plans are protected, within certain limitations, by federal insurance provided through the Pension Benefit Guaranty Corporation (PBGC).
C41: ASSET TYPES: PENSION - DEFINED CONTRIBUTION: A defined contribution plan does not promise a specific amount of benefits at retirement. In these plans, the employee or the employer (or both) contribute to the employee's individual account under the plan, sometimes at a set rate, such as 5 percent of earnings annually. These contributions generally are invested on the employee's behalf. The employee will ultimately receive the balance in their account, which is based on contributions plus or minus investment gains or losses. The value of the account will fluctuate due to the changes in the value of the investments. Examples of defined contribution plans include 401(k) plans, 403(b) plans, employee stock ownership plans, and profit-sharing plans.
C46: ASSET TYPES: PROFIT SHARING: A profit-sharing plan gives employees a share in their company's profits based on its quarterly or annual earnings. It is up to the company to decide how much of its profits it wishes to share. Contributions to a profit-sharing plan are made by the company only.
C47: INFLATION: Throughout our analysis we attempt to consider the effects of inflation especially when reviewing retirement plans and we encourage users of this tool to do the same in their analysis. While stock returns may be more volatile than bond returns, we believe that in the long term, stocks offer a much higher rate of return reducing any risk of inflation to future cash flows.
C49: FIXED INCOME IN NOMINAL TERMS: Typically these are Fixed Annuities. Variable annuities give buyers a chance to benefit from rising markets by investing in a menu of mutual funds offered by the insurer. The upside is the possibility of higher returns during the accumulation phase and a larger income during the payout phase. The downside is that the buyer is exposed to market risk, which could result in losses. With a fixed annuity, by contrast, the insurance company assumes the risk of delivering whatever return it has promised
C53: PENSION PLANS: Every pension plan is different and some may include inflation. While state and federal pensions are typically adjusted for inflation, most private pensions are not. A 2000 Bureau of Labor Statistics survey reported that only nine percent of blue collar and service industry employees who are in traditional pension plans received an automatic cost of living adjustment in that year.
C55: RATE OF RETURN: A rate of return is the net gain or loss of an investment over a specified time period, expressed as a percentage of the investment’s initial cost. When calculating the rate of return, you are determining the percentage change from the beginning of the period until the end. The effects of inflation are not taken into consideration in the simple rate of return calculation but are in the real rate of return calculation.
C59: REAL RATE OF RETURN: Real rate of return is the annual percentage of profit earned on an investment, adjusted for inflation. Therefore, the real rate of return accurately indicates the actual purchasing power of a given amount of money over time. Adjusting the nominal return to compensate for inflation allows the investor to determine how much of a nominal return is real return. In addition to adjusting for inflation, investors also must consider the impact of other factors, such as taxes and investing fees, to calculate real returns on their money or to choose among various investing options.
C64: RISK PROFILE: A risk profile is an evaluation of an individual's willingness and ability to take risks. An investor who has a higher tolerance for risk will likely prefer a portfolio more heavily weighted towards equities. A risk profile with a larger allocation to equities than bonds will have the potential to earn a higher return, however, this potential comes with risk of greater losses. Conversely, a risk profile with a larger allocation to bonds versus equities will likely be subjected to lower returns, and potential lower growth of capital, but will be less exposed to volatility in equities. While there is no one hard and fast rule, a user that is in the early earning stages of his life cycle will generally select a higher risk profile as they have many years to grow their income and save for retirement. Generally, a user that is closer to, or in retirement, will select a more conservative risk profile which allows the savings to increase marginally throughout retirement with a lesser chance for significant losses. It is important to consider your long-term objectives when selecting your risk profile.
C66: TAXES: If you have investment income in tax exposed accounts, this analysis assumes you pay taxes outside of your account.

Sheet FV Factors (hidden)
E4: Liquid Assets | L4: Retirement Funds | R4: Deferred Compensation | Y4: Investment Portfolio | AF4: Other | AM4: Total Retirement | AU4: Real Estate
AM5: Investment Return
E6: Investment Return | F6: ='STEP 2 - Calculator'!E61 -> 0.005 | L6: Investment Return | N6: ='STEP 2 - Calculator'!E62 -> 0.0645 | R6: Investment Return | T6: ='STEP 2 - Calculator'!E65 -> 0.005 | Y6: Investment Return | AA6: ='STEP 2 - Calculator'!E66 -> 0.0645 | AF6: Investment Return | AH6: ='STEP 2 - Calculator'!F68 -> 0.0645 | AM6: Present value | AO6: =AH7+AA7+T7+N7+F7 -> 100000 | AU6: Investment Return | AW6: 0
E7: Present value | F7: ='STEP 2 - Calculator'!C61 -> 0 | L7: Present value | N7: ='STEP 2 - Calculator'!C62 -> 0 | R7: Present value | T7: ='STEP 2 - Calculator'!C65 -> 0 | Y7: Present value | AA7: ='STEP 2 - Calculator'!C66 -> 0 | AF7: Present value | AH7: 100000 | AM7: Annual Contribution | AO7: 0 | AU7: Present value | AW7: 0
E8: Annual Contribution | F8: ='STEP 2 - Calculator'!D61 -> 0 | L8: Annual Contribution | N8: 0 | R8: Annual Contribution | T8: 0 | Y8: Annual Contribution | AA8: 0 | AF8: Annual Contribution | AH8: 0 | AM8: Annual Withdrawal at Retirement | AO8: =AI16+AB16+U16+O16+H16 -> 0 | AU8: Annual Contribution
F9: Beginning of | I9: End of | M9: First of | P9: End of | R9: Column1 | S9: First of | T9: Column3 | U9: Column4 | V9: End of | Y9: Column1 | Z9: First of | AA9: Column3 | AB9: Column4 | AC9: End of | AF9: Column1 | AG9: First of | AH9: Column3 | AI9: Column4 | AJ9: End of | AM9: Column1 | AN9: First of | AO9: Column3 | AP9: Column4 | AQ9: End of | AU9: Column1 | AV9: First of | AW9: Column3 | AX9: Column4 | AY9: End of
F10: Year | H10: Annual | I10: Year | M10: Year | O10: Annual | P10: Year | S10: Year | U10: Annual | V10: Year | Z10: Year | AB10: Annual | AC10: Year | AG10: Year | AI10: Annual | AJ10: Year | AN10: Year | AP10: Annual | AQ10: Year | AV10: Year | AX10: Annual | AY10: Year
B11: YEAR | C11: AGE | E11: Year | F11: Balance | G11: Total Return | H11: Contribution/Withrawal | I11: Balance | J11: YEAR | K11: AGE | L11: Year | M11: Balance | N11: Total Return | O11: Contribution/Withrawal | P11: Balance | R11: Year | S11: Balance | T11: Total Return | U11: Contribution/Withrawal | V11: Balance | Y11: Year | Z11: Balance | AA11: Total Return | AB11: Contribution/Withrawal | AC11: Balance | AF11: Year | AG11: Balance | AH11: Total Return | AI11: Contribution/Withrawal | AJ11: Balance | AK11: YEAR | AL11: AGE | AM11: Year | AN11: Balance | AO11: Total Return | AP11: Contribution/Withrawal | AQ11: Balance | AS11: YEAR | AT11: AGE | AU11: Year | AV11: Balance | AW11: Total Return | AX11: Contribution/Withrawal | AY11: Balance | AZ11: YEAR | BA11: AGE
H12: Contribution / Withdrawal occurs at end of year | O12: Contribution / Withdrawal occurs at end of year | U12: Contribution / Withdrawal occurs at end of year | AB12: Contribution / Withdrawal occurs at end of year | AI12: Contribution / Withdrawal occurs at end of year | AP12: Contribution / Withdrawal occurs at end of year | BC12: Social Secutiry Benefits
B13: ='STEP 2 - Calculator'!E24 -> 2022 | C13: ='STEP 2 - Calculator'!C19 -> 74 | E13: 1 | H13: =F8 -> 0 | I13: 57000 | J13: =B13 -> 2022 | K13: =C13 -> 74 | L13: 1 | M13: 0 | P13: ='STEP 2 - Calculator'!C62 -> 0 | R13: 1 | T13: =Table12456[[#This Row],[First of]]*$T$6 -> 0 | U13: 0 | V13: 4115.38 | Y13: 1 | Z13: 0 | AA13: =Table1245[[#This Row],[First of]]*$AA$6 -> 0 | AB13: 0 | AC13: =AA7 -> 0 | AF13: 1 | AI13: 0 | AJ13: 100000 | AK13: =B13 -> 2022 | AL13: =C13 -> 74 | AM13: 1 | AQ13: =Table1248[[#This Row],[End of]]+Table1245[[#This Row],[End of]]+Table12456[[#This Row],[End of]]+P13+I13 -> 161115.38 | AS13: 2020 | AT13: 36 | AU13: 1 | AV13: 0 | AW13: =Table12429[[#This Row],[First of]]*$AW$6 -> 0 | AX13: 0 | AY13: =Table12429[[#This Row],[First of]]+Table12429[[#This Row],[Column3]]+Table12429[[#This Row],[Column4]] -> 0 | AZ13: =B13 -> 2022 | BA13: =C13 -> 74
B14: =B13+1 -> 2023 | C14: =C13+1 -> 75 | E14: 2 | F14: 57000 | G14: =F14*$F$6 -> 285 | H14: =F8 -> 0 | I14: =F14+G14+H14 -> 57285 | J14: =J13+1 -> 2023 | K14: =K13+1 -> 75 | L14: 2 | M14: =P13 -> 0 | N14: =M14*$N$6 -> 0 | O14: 25307.7957 | P14: =M14+N14+O14 -> 25307.7957 | R14: 2 | S14: =V13 -> 4115.38 | T14: =Table12456[[#This Row],[First of]]*$T$6 -> 20.5769 | U14: 0 | V14: =Table12456[[#This Row],[First of]]+Table12456[[#This Row],[Column3]]+Table12456[[#This Row],[Column4]] -> 4135.9569 | Y14: 2 | Z14: =AC13 -> 0 | AA14: =Table1245[[#This Row],[First of]]*$AA$6 -> 0 | AB14: 0 | AC14: =Table1245[[#This Row],[First of]]+Table1245[[#This Row],[Column3]]+Table1245[[#This Row],[Column4]] -> 0 | AF14: 2 | AG14: =AJ13 -> 100000 | AI14: 0 | AJ14: =Table1248[[#This Row],[First of]]+Table1248[[#This Row],[Column3]]+Table1248[[#This Row],[Column4]] -> 100000 | AK14: =AK13+1 -> 2023 | AL14: =AL13+1 -> 75 | AM14: 2 | AN14: =F14+M14+Table12456[[#This Row],[First of]]+Table1245[[#This Row],[First of]]+Table1248[[#This Row],[First of]] -> 161115.38 | AO14: =G14+N14+Table12456[[#This Row],[Column3]]+Table1245[[#This Row],[Column3]]+Table1248[[#This Row],[Column3]] -> 305.5769 | AP14: =O14 -> 25307.7957 | AQ14: =Table1248[[#This Row],[End of]]+Table1245[[#This Row],[End of]]+Table12456[[#This Row],[End of]]+P14+I14 -> 186728.7526 | AS14: =AS13+1 -> 2021 | AT14: =AT13+1 -> 37 | AU14: 2 | AV14: =AY13 -> 0 | AW14: =Table12429[[#This Row],[First of]]*$AW$6 -> 0 | AX14: =AX13 -> 0 | AY14: =Table12429[[#This Row],[First of]]+Table12429[[#This Row],[Column3]]+Table12429[[#This Row],[Column4]] -> 0 | AZ14: =AZ13+1 -> 2023 | BA14: =BA13+1 -> 75
B15: =B14+1 -> 2024 | C15: =C14+1 -> 76 | E15: 3 | F15: =I14 -> 57285 | G15: 286.425 | H15: =H14/2 -> 0 | I15: =F15+G15+H15 -> 57571.425 | J15: =J14+1 -> 2024 | K15: =K14+1 -> 76 | L15: 3 | M15: =P14 -> 25307.7957 | N15: =M15*$N$6 -> 1632.352823 | O15: 25308 | P15: =M15+N15+O15 -> 52248.14852 | R15: 3 | S15: =V14 -> 4135.9569 | T15: =Table12456[[#This Row],[First of]]*$T$6 -> 20.6797845 | U15: 0 | V15: =Table12456[[#This Row],[First of]]+Table12456[[#This Row],[Column3]]+Table12456[[#This Row],[Column4]] -> 4156.636685 | Y15: 3 | Z15: =AC14 -> 0 | AA15: =Table1245[[#This Row],[First of]]*$AA$6 -> 0 | AB15: 0 | AC15: =Table1245[[#This Row],[First of]]+Table1245[[#This Row],[Column3]]+Table1245[[#This Row],[Column4]] -> 0 | AF15: 3 | AG15: =AJ14 -> 100000 | AI15: 0 | AJ15: =AH7 -> 100000 | AK15: =AK14+1 -> 2024 | AL15: 76 | AM15: 3 | AN15: =F15+M15+Table12456[[#This Row],[First of]]+Table1245[[#This Row],[First of]]+Table1248[[#This Row],[First of]] -> 186728.7526 | AO15: =G15+N15+Table12456[[#This Row],[Column3]]+Table1245[[#This Row],[Column3]]+Table1248[[#This Row],[Column3]] -> 1939.457607 | AP15: =O15 -> 25308 | AQ15: =Table1248[[#This Row],[End of]]+Table1245[[#This Row],[End of]]+Table12456[[#This Row],[End of]]+P15+I15 -> 213976.2102 | AS15: =AS14+1 -> 2022 | AT15: 38 | AU15: 3 | AV15: =AY14 -> 0 | AW15: =Table12429[[#This Row],[First of]]*$AW$6 -> 0 | AX15: =AX14 -> 0 | AY15: =Table12429[[#This Row],[First of]]+Table12429[[#This Row],[Column3]]+Table12429[[#This Row],[Column4]] -> 0 | AZ15: =AZ14+1 -> 2024 | BA15: 76
B16: =B15+1 -> 2025 | C16: 77 | E16: 4 | F16: 57571.425 | G16: =(F16+H16)*$F$6 -> 287.857125 | H16: =-'STEP 2 - Calculator'!$H$61 -> 0 | I16: =F16+G16+H16 -> 57859.28213 | J16: =J15+1 -> 2025 | K16: 77 | L16: 4 | M16: 52248.14852 | N16: =(M16+O16)*$N$6 -> 3370.00558 | O16: =-'STEP 2 - Calculator'!$H$62 -> 0 | P16: =M16+N16+O16 -> 55618.1541 | R16: =R15+1 -> 4 | S16: =V15 -> 4156.636685 | T16: =(Table12456[[#This Row],[First of]]+Table12456[[#This Row],[Column4]])*$T$6 -> 20.78318342 | U16: =-'STEP 2 - Calculator'!$H$65 -> 0 | V16: =Table12456[[#This Row],[First of]]+Table12456[[#This Row],[Column3]]+Table12456[[#This Row],[Column4]] -> 4177.419868 | Y16: =Y15+1 -> 4 | Z16: =AC15 -> 0 | AA16: =(Table1245[[#This Row],[First of]]+Table1245[[#This Row],[Column4]])*$AA$6 -> 0 | AB16: =-'STEP 2 - Calculator'!$H$66 -> 0 | AC16: =Table1245[[#This Row],[First of]]+Table1245[[#This Row],[Column3]]+Table1245[[#This Row],[Column4]] -> 0 | AF16: =AF15+1 -> 4 | AG16: 100000 | AH16: =(Table1248[[#This Row],[First of]]+Table1248[[#This Row],[Column4]])*$AH$6 -> 6450 | AI16: =-'STEP 2 - Calculator'!$H$68 -> 0 | AJ16: =Table1248[[#This Row],[First of]]+Table1248[[#This Row],[Column3]]+Table1248[[#This Row],[Column4]] -> 106450 | AK16: 2025 | AL16: 77 | AM16: =AM15+1 -> 4 | AN16: =Table1248[[#This Row],[First of]]+Table1245[[#This Row],[First of]]+M16+F16+Table12456[[#This Row],[First of]] -> 213976.2102 | AO16: =G16+N16+Table12456[[#This Row],[Column3]]+Table1245[[#This Row],[Column3]]+Table1248[[#This Row],[Column3]] -> 10128.64589 | AP16: =$AO$8 -> 0 | AQ16: =Table1248[[#This Row],[End of]]+Table1245[[#This Row],[End of]]+Table12456[[#This Row],[End of]]+P16+I16 -> 224104.8561 | AS16: 2023 | AT16: 39 | AU16: =AU15+1 -> 4 | AV16: =AY15 -> 0 | AW16: =Table12429[[#This Row],[First of]]*$AW$6 -> 0 | AX16: 0 | AY16: =Table12429[[#This Row],[First of]]+Table12429[[#This Row],[Column3]]+Table12429[[#This Row],[Column4]] -> 0 | AZ16: 2025 | BA16: 77 | BC16: 72000
B17: 2026 | C17: 78 | E17: 5 | F17: 57859.28213 | G17: =(F17+H17)*$F$6 -> 289.2964106 | H17: =-'STEP 2 - Calculator'!$H$61 -> 0 | I17: =F17+G17+H17 -> 58148.57854 | J17: 2026 | K17: 78 | L17: 5 | M17: 55618.1541 | N17: =(M17+O17)*$N$6 -> 3587.37094 | O17: =-'STEP 2 - Calculator'!$H$62 -> 0 | P17: =M17+N17+O17 -> 59205.52504 | R17: =R16+1 -> 5 | S17: =V16 -> 4177.419868 | T17: =(Table12456[[#This Row],[First of]]+Table12456[[#This Row],[Column4]])*$T$6 -> 20.88709934 | U17: =-'STEP 2 - Calculator'!$H$65 -> 0 | V17: =Table12456[[#This Row],[First of]]+Table12456[[#This Row],[Column3]]+Table12456[[#This Row],[Column4]] -> 4198.306967 | Y17: =Y16+1 -> 5 | Z17: 0 | AA17: =(Table1245[[#This Row],[First of]]+Table1245[[#This Row],[Column4]])*$AA$6 -> 0 | AB17: =-'STEP 2 - Calculator'!$H$66 -> 0 | AC17: =Table1245[[#This Row],[First of]]+Table1245[[#This Row],[Column3]]+Table1245[[#This Row],[Column4]] -> 0 | AF17: =AF16+1 -> 5 | AG17: 106450 | AH17: =(Table1248[[#This Row],[First of]]+Table1248[[#This Row],[Column4]])*$AH$6 -> 6866.025 | AI17: =-'STEP 2 - Calculator'!$H$68 -> 0 | AJ17: =Table1248[[#This Row],[First of]]+Table1248[[#This Row],[Column3]]+Table1248[[#This Row],[Column4]] -> 113316.025 | AK17: 2026 | AL17: 78 | AM17: 5 | AN17: =Table1248[[#This Row],[First of]]+Table1245[[#This Row],[First of]]+M17+F17+Table12456[[#This Row],[First of]] -> 224104.8561 | AO17: =G17+N17+Table12456[[#This Row],[Column3]]+Table1245[[#This Row],[Column3]]+Table1248[[#This Row],[Column3]] -> 10763.57945 | AP17: =$AO$8 -> 0 | AQ17: =Table1248[[#This Row],[End of]]+Table1245[[#This Row],[End of]]+Table12456[[#This Row],[End of]]+P17+I17 -> 234868.4355 | AS17: 2024 | AT17: 40 | AU17: 5 | AV17: 0 | AW17: =Table12429[[#This Row],[First of]]*$AW$6 -> 0 | AX17: 0 | AY17: =Table12429[[#This Row],[First of]]+Table12429[[#This Row],[Column3]]+Table12429[[#This Row],[Column4]] -> 0 | AZ17: 2026 | BA17: 78 | BC17: 72000
B18: 2027 | C18: 79 | E18: 6 | F18: 58148.57854 | G18: 290.7428927 | H18: =-'STEP 2 - Calculator'!$H$61 -> 0 | I18: =F18+G18+H18 -> 58439.32143 | J18: 2027 | K18: 79 | L18: 6 | M18: 59205.52504 | N18: 3818.756365 | O18: =-'STEP 2 - Calculator'!$H$62 -> 0 | P18: 63024.28141 | R18: 6 | S18: =V17 -> 4198.306967 | T18: =(Table12456[[#This Row],[First of]]+Table12456[[#This Row],[Column4]])*$T$6 -> 20.99153484 | U18: =-'STEP 2 - Calculator'!$H$65 -> 0 | V18: =Table12456[[#This Row],[First of]]+Table12456[[#This Row],[Column3]]+Table12456[[#This Row],[Column4]] -> 4219.298502 | Y18: 6 | Z18: 0 | AA18: =(Table1245[[#This Row],[First of]]+Table1245[[#This Row],[Column4]])*$AA$6 -> 0 | AB18: =-'STEP 2 - Calculator'!$H$66 -> 0 | AC18: =Table1245[[#This Row],[First of]]+Table1245[[#This Row],[Column3]]+Table1245[[#This Row],[Column4]] -> 0 | AF18: 6 | AG18: 113316.025 | AH18: =(Table1248[[#This Row],[First of]]+Table1248[[#This Row],[Column4]])*$AH$6 -> 7308.883612 | AI18: =-'STEP 2 - Calculator'!$H$68 -> 0 | AJ18: =Table1248[[#This Row],[First of]]+Table1248[[#This Row],[Column3]]+Table1248[[#This Row],[Column4]] -> 120624.9086 | AK18: 2027 | AL18: 79 | AM18: 6 | AN18: =Table1248[[#This Row],[First of]]+Table1245[[#This Row],[First of]]+M18+F18+Table12456[[#This Row],[First of]] -> 234868.4355 | AO18: =G18+N18+Table12456[[#This Row],[Column3]]+Table1245[[#This Row],[Column3]]+Table1248[[#This Row],[Column3]] -> 11439.37441 | AP18: 0 | AQ18: =Table1248[[#This Row],[End of]]+Table1245[[#This Row],[End of]]+Table12456[[#This Row],[End of]]+P18+I18 -> 246307.81 | AS18: 2025 | AT18: 41 | AU18: 6 | AV18: 0 | AW18: =Table12429[[#This Row],[First of]]*$AW$6 -> 0 | AX18: 0 | AY18: =Table12429[[#This Row],[First of]]+Table12429[[#This Row],[Column3]]+Table12429[[#This Row],[Column4]] -> 0 | AZ18: 2027 | BA18: 79 | BC18: 72000
B19: 2028 | C19: 80 | E19: 7 | F19: 58439.32143 | G19: 292.1966071 | H19: =-'STEP 2 - Calculator'!$H$61 -> 0 | I19: 58731.51804 | J19: 2028 | K19: 80 | L19: 7 | M19: 63024.28141 | N19: 4065.066151 | O19: =-'STEP 2 - Calculator'!$H$62 -> 0 | P19: 67089.34756 | R19: 7 | S19: 4219.298502 | T19: =(Table12456[[#This Row],[First of]]+Table12456[[#This Row],[Column4]])*$T$6 -> 21.09649251 | U19: =-'STEP 2 - Calculator'!$H$65 -> 0 | V19: =Table12456[[#This Row],[First of]]+Table12456[[#This Row],[Column3]]+Table12456[[#This Row],[Column4]] -> 4240.394995 | Y19: 7 | Z19: 0 | AA19: =(Table1245[[#This Row],[First of]]+Table1245[[#This Row],[Column4]])*$AA$6 -> 0 | AB19: =-'STEP 2 - Calculator'!$H$66 -> 0 | AC19: =Table1245[[#This Row],[First of]]+Table1245[[#This Row],[Column3]]+Table1245[[#This Row],[Column4]] -> 0 | AF19: 7 | AG19: 120624.9086 | AH19: =(Table1248[[#This Row],[First of]]+Table1248[[#This Row],[Column4]])*$AH$6 -> 7780.306606 | AI19: =-'STEP 2 - Calculator'!$H$68 -> 0 | AJ19: =Table1248[[#This Row],[First of]]+Table1248[[#This Row],[Column3]]+Table1248[[#This Row],[Column4]] -> 128405.2152 | AK19: 2028 | AL19: 80 | AM19: 7 | AN19: =Table1248[[#This Row],[First of]]+Table1245[[#This Row],[First of]]+M19+F19+Table12456[[#This Row],[First of]] -> 246307.81 | AO19: =G19+N19+Table12456[[#This Row],[Column3]]+Table1245[[#This Row],[Column3]]+Table1248[[#This Row],[Column3]] -> 12158.66586 | AP19: 0 | AQ19: =Table1248[[#This Row],[End of]]+Table1245[[#This Row],[End of]]+Table12456[[#This Row],[End of]]+P19+I19 -> 258466.4758 | AS19: 2026 | AT19: 42 | AU19: 7 | AV19: 0 | AW19: =Table12429[[#This Row],[First of]]*$AW$6 -> 0 | AX19: 0 | AY19: =Table12429[[#This Row],[First of]]+Table12429[[#This Row],[Column3]]+Table12429[[#This Row],[Column4]] -> 0 | AZ19: 2028 | BA19: 80 | BC19: 72000
B20: 2029 | C20: 81 | E20: 8 | F20: 58731.51804 | G20: 293.6575902 | H20: =-'STEP 2 - Calculator'!$H$61 -> 0 | I20: 59025.17563 | J20: 2029 | K20: 81 | L20: 8 | M20: 67089.34756 | N20: 4327.262917 | O20: =-'STEP 2 - Calculator'!$H$62 -> 0 | P20: 71416.61048 | R20: 8 | S20: 4240.394995 | T20: =(Table12456[[#This Row],[First of]]+Table12456[[#This Row],[Column4]])*$T$6 -> 21.20197497 | U20: =-'STEP 2 - Calculator'!$H$65 -> 0 | V20: =Table12456[[#This Row],[First of]]+Table12456[[#This Row],[Column3]]+Table12456[[#This Row],[Column4]] -> 4261.59697 | Y20: 8 | Z20: 0 | AA20: =(Table1245[[#This Row],[First of]]+Table1245[[#This Row],[Column4]])*$AA$6 -> 0 | AB20: =-'STEP 2 - Calculator'!$H$66 -> 0 | AC20: =Table1245[[#This Row],[First of]]+Table1245[[#This Row],[Column3]]+Table1245[[#This Row],[Column4]] -> 0 | AF20: 8 | AG20: 128405.2152 | AH20: =(Table1248[[#This Row],[First of]]+Table1248[[#This Row],[Column4]])*$AH$6 -> 8282.136382 | AI20: =-'STEP 2 - Calculator'!$H$68 -> 0 | AJ20: =Table1248[[#This Row],[First of]]+Table1248[[#This Row],[Column3]]+Table1248[[#This Row],[Column4]] -> 136687.3516 | AK20: 2029 | AL20: 81 | AM20: 8 | AN20: =Table1248[[#This Row],[First of]]+Table1245[[#This Row],[First of]]+M20+F20+Table12456[[#This Row],[First of]] -> 258466.4758 | AO20: =G20+N20+Table12456[[#This Row],[Column3]]+Table1245[[#This Row],[Column3]]+Table1248[[#This Row],[Column3]] -> 12924.25886 | AP20: 0 | AQ20: =Table1248[[#This Row],[End of]]+Table1245[[#This Row],[End of]]+Table12456[[#This Row],[End of]]+P20+I20 -> 271390.7347 | AS20: 2027 | AT20: 43 | AU20: 8 | AV20: 0 | AW20: =Table12429[[#This Row],[First of]]*$AW$6 -> 0 | AX20: 0 | AY20: =Table12429[[#This Row],[First of]]+Table12429[[#This Row],[Column3]]+Table12429[[#This Row],[Column4]] -> 0 | AZ20: 2029 | BA20: 81 | BC20: 72000
B21: 2030 | C21: 82 | E21: 9 | F21: 59025.17563 | G21: 295.1258781 | H21: =-'STEP 2 - Calculator'!$H$61 -> 0 | I21: 59320.3015 | J21: 2030 | K21: 82 | L21: 9 | M21: 71416.61048 | N21: 4606.371376 | O21: =-'STEP 2 - Calculator'!$H$62 -> 0 | P21: 76022.98185 | R21: 9 | S21: 4261.59697 | T21: =(Table12456[[#This Row],[First of]]+Table12456[[#This Row],[Column4]])*$T$6 -> 21.30798485 | U21: =-'STEP 2 - Calculator'!$H$65 -> 0 | V21: =Table12456[[#This Row],[First of]]+Table12456[[#This Row],[Column3]]+Table12456[[#This Row],[Column4]] -> 4282.904954 | Y21: 9 | Z21: 0 | AA21: =(Table1245[[#This Row],[First of]]+Table1245[[#This Row],[Column4]])*$AA$6 -> 0 | AB21: =-'STEP 2 - Calculator'!$H$66 -> 0 | AC21: =Table1245[[#This Row],[First of]]+Table1245[[#This Row],[Column3]]+Table1245[[#This Row],[Column4]] -> 0 | AF21: 9 | AG21: 136687.3516 | AH21: =(Table1248[[#This Row],[First of]]+Table1248[[#This Row],[Column4]])*$AH$6 -> 8816.334178 | AI21: =-'STEP 2 - Calculator'!$H$68 -> 0 | AJ21: =Table1248[[#This Row],[First of]]+Table1248[[#This Row],[Column3]]+Table1248[[#This Row],[Column4]] -> 145503.6858 | AK21: 2030 | AL21: 82 | AM21: 9 | AN21: =Table1248[[#This Row],[First of]]+Table1245[[#This Row],[First of]]+M21+F21+Table12456[[#This Row],[First of]] -> 271390.7347 | AO21: =G21+N21+Table12456[[#This Row],[Column3]]+Table1245[[#This Row],[Column3]]+Table1248[[#This Row],[Column3]] -> 13739.13942 | AP21: 0 | AQ21: =Table1248[[#This Row],[End of]]+Table1245[[#This Row],[End of]]+Table12456[[#This Row],[End of]]+P21+I21 -> 285129.8741 | AS21: 2028 | AT21: 44 | AU21: 9 | AV21: 0 | AW21: =Table12429[[#This Row],[First of]]*$AW$6 -> 0 | AX21: 0 | AY21: =Table12429[[#This Row],[First of]]+Table12429[[#This Row],[Column3]]+Table12429[[#This Row],[Column4]] -> 0 | AZ21: 2030 | BA21: 82 | BC21: 72000
B22: 2031 | C22: 83 | E22: 10 | F22: 59320.3015 | G22: 296.6015075 | H22: =-'STEP 2 - Calculator'!$H$61 -> 0 | I22: 59616.90301 | J22: 2031 | K22: 83 | L22: 10 | M22: 76022.98185 | N22: 4903.482329 | O22: =-'STEP 2 - Calculator'!$H$62 -> 0 | P22: 80926.46418 | R22: 10 | S22: 4282.904954 | T22: =(Table12456[[#This Row],[First of]]+Table12456[[#This Row],[Column4]])*$T$6 -> 21.41452477 | U22: =-'STEP 2 - Calculator'!$H$65 -> 0 | V22: =Table12456[[#This Row],[First of]]+Table12456[[#This Row],[Column3]]+Table12456[[#This Row],[Column4]] -> 4304.319479 | Y22: 10 | Z22: 0 | AA22: =(Table1245[[#This Row],[First of]]+Table1245[[#This Row],[Column4]])*$AA$6 -> 0 | AB22: =-'STEP 2 - Calculator'!$H$66 -> 0 | AC22: =Table1245[[#This Row],[First of]]+Table1245[[#This Row],[Column3]]+Table1245[[#This Row],[Column4]] -> 0 | AF22: 10 | AG22: 145503.6858 | AH22: =(Table1248[[#This Row],[First of]]+Table1248[[#This Row],[Column4]])*$AH$6 -> 9384.987733 | AI22: =-'STEP 2 - Calculator'!$H$68 -> 0 | AJ22: =Table1248[[#This Row],[First of]]+Table1248[[#This Row],[Column3]]+Table1248[[#This Row],[Column4]] -> 154888.6735 | AK22: 2031 | AL22: 83 | AM22: 10 | AN22: =Table1248[[#This Row],[First of]]+Table1245[[#This Row],[First of]]+M22+F22+Table12456[[#This Row],[First of]] -> 285129.8741 | AO22: =G22+N22+Table12456[[#This Row],[Column3]]+Table1245[[#This Row],[Column3]]+Table1248[[#This Row],[Column3]] -> 14606.48609 | AP22: 0 | AQ22: =Table1248[[#This Row],[End of]]+Table1245[[#This Row],[End of]]+Table12456[[#This Row],[End of]]+P22+I22 -> 299736.3602 | AS22: 2029 | AT22: 45 | AU22: 10 | AV22: 0 | AW22: =Table12429[[#This Row],[First of]]*$AW$6 -> 0 | AX22: 0 | AY22: =Table12429[[#This Row],[First of]]+Table12429[[#This Row],[Column3]]+Table12429[[#This Row],[Column4]] -> 0 | AZ22: 2031 | BA22: 83 | BC22: 72000
B23: 2032 | C23: 84 | E23: 11 | F23: 59616.90301 | G23: 298.0845151 | H23: =-'STEP 2 - Calculator'!$H$61 -> 0 | I23: 59914.98753 | J23: 2032 | K23: 84 | L23: 11 | M23: 80926.46418 | N23: 5219.75694 | O23: =-'STEP 2 - Calculator'!$H$62 -> 0 | P23: 86146.22112 | R23: 11 | S23: 4304.319479 | T23: =(Table12456[[#This Row],[First of]]+Table12456[[#This Row],[Column4]])*$T$6 -> 21.5215974 | U23: =-'STEP 2 - Calculator'!$H$65 -> 0 | V23: =Table12456[[#This Row],[First of]]+Table12456[[#This Row],[Column3]]+Table12456[[#This Row],[Column4]] -> 4325.841077 | Y23: 11 | Z23: 0 | AA23: =(Table1245[[#This Row],[First of]]+Table1245[[#This Row],[Column4]])*$AA$6 -> 0 | AB23: =-'STEP 2 - Calculator'!$H$66 -> 0 | AC23: =Table1245[[#This Row],[First of]]+Table1245[[#This Row],[Column3]]+Table1245[[#This Row],[Column4]] -> 0 | AF23: 11 | AG23: 154888.6735 | AH23: =(Table1248[[#This Row],[First of]]+Table1248[[#This Row],[Column4]])*$AH$6 -> 9990.319441 | AI23: =-'STEP 2 - Calculator'!$H$68 -> 0 | AJ23: =Table1248[[#This Row],[First of]]+Table1248[[#This Row],[Column3]]+Table1248[[#This Row],[Column4]] -> 164878.993 | AK23: 2032 | AL23: 84 | AM23: 11 | AN23: =Table1248[[#This Row],[First of]]+Table1245[[#This Row],[First of]]+M23+F23+Table12456[[#This Row],[First of]] -> 299736.3602 | AO23: =G23+N23+Table12456[[#This Row],[Column3]]+Table1245[[#This Row],[Column3]]+Table1248[[#This Row],[Column3]] -> 15529.68249 | AP23: 0 | AQ23: =Table1248[[#This Row],[End of]]+Table1245[[#This Row],[End of]]+Table12456[[#This Row],[End of]]+P23+I23 -> 315266.0427 | AS23: 2030 | AT23: 46 | AU23: 11 | AV23: 0 | AW23: =Table12429[[#This Row],[First of]]*$AW$6 -> 0 | AX23: 0 | AY23: =Table12429[[#This Row],[First of]]+Table12429[[#This Row],[Column3]]+Table12429[[#This Row],[Column4]] -> 0 | AZ23: 2032 | BA23: 84 | BC23: 72000
B24: 2033 | C24: 85 | E24: 12 | F24: 59914.98753 | G24: 299.5749376 | H24: =-'STEP 2 - Calculator'!$H$61 -> 0 | I24: =F24+G24+H24 -> 60214.56246 | J24: 2033 | K24: 85 | L24: 12 | M24: 86146.22112 | N24: 5556.431262 | O24: =-'STEP 2 - Calculator'!$H$62 -> 0 | P24: 91702.65238 | R24: 12 | S24: 4325.841077 | T24: =(Table12456[[#This Row],[First of]]+Table12456[[#This Row],[Column4]])*$T$6 -> 21.62920538 | U24: =-'STEP 2 - Calculator'!$H$65 -> 0 | V24: =Table12456[[#This Row],[First of]]+Table12456[[#This Row],[Column3]]+Table12456[[#This Row],[Column4]] -> 4347.470282 | Y24: 12 | Z24: 0 | AA24: =(Table1245[[#This Row],[First of]]+Table1245[[#This Row],[Column4]])*$AA$6 -> 0 | AB24: =-'STEP 2 - Calculator'!$H$66 -> 0 | AC24: =Table1245[[#This Row],[First of]]+Table1245[[#This Row],[Column3]]+Table1245[[#This Row],[Column4]] -> 0 | AF24: 12 | AG24: 164878.993 | AH24: =(Table1248[[#This Row],[First of]]+Table1248[[#This Row],[Column4]])*$AH$6 -> 10634.69505 | AI24: =-'STEP 2 - Calculator'!$H$68 -> 0 | AJ24: =Table1248[[#This Row],[First of]]+Table1248[[#This Row],[Column3]]+Table1248[[#This Row],[Column4]] -> 175513.688 | AK24: 2033 | AL24: 85 | AM24: 12 | AN24: =Table1248[[#This Row],[First of]]+Table1245[[#This Row],[First of]]+M24+F24+Table12456[[#This Row],[First of]] -> 315266.0427 | AO24: =G24+N24+Table12456[[#This Row],[Column3]]+Table1245[[#This Row],[Column3]]+Table1248[[#This Row],[Column3]] -> 16512.33045 | AP24: 0 | AQ24: =Table1248[[#This Row],[End of]]+Table1245[[#This Row],[End of]]+Table12456[[#This Row],[End of]]+P24+I24 -> 331778.3731 | AS24: 2031 | AT24: 47 | AU24: 12 | AV24: 0 | AW24: =Table12429[[#This Row],[First of]]*$AW$6 -> 0 | AX24: 0 | AY24: =Table12429[[#This Row],[First of]]+Table12429[[#This Row],[Column3]]+Table12429[[#This Row],[Column4]] -> 0 | AZ24: 2033 | BA24: 85 | BC24: 72000
B25: 2034 | C25: 86 | E25: 13 | F25: 60214.56246 | G25: 301.0728123 | H25: =-'STEP 2 - Calculator'!$H$61 -> 0 | I25: 60515.63528 | J25: 2034 | K25: 86 | L25: 13 | M25: 91702.65238 | N25: 5914.821079 | O25: =-'STEP 2 - Calculator'!$H$62 -> 0 | P25: 97617.47346 | R25: 13 | S25: 4347.470282 | T25: =(Table12456[[#This Row],[First of]]+Table12456[[#This Row],[Column4]])*$T$6 -> 21.73735141 | U25: =-'STEP 2 - Calculator'!$H$65 -> 0 | V25: =Table12456[[#This Row],[First of]]+Table12456[[#This Row],[Column3]]+Table12456[[#This Row],[Column4]] -> 4369.207633 | Y25: 13 | Z25: 0 | AA25: =(Table1245[[#This Row],[First of]]+Table1245[[#This Row],[Column4]])*$AA$6 -> 0 | AB25: =-'STEP 2 - Calculator'!$H$66 -> 0 | AC25: =Table1245[[#This Row],[First of]]+Table1245[[#This Row],[Column3]]+Table1245[[#This Row],[Column4]] -> 0 | AF25: 13 | AG25: 175513.688 | AH25: =(Table1248[[#This Row],[First of]]+Table1248[[#This Row],[Column4]])*$AH$6 -> 11320.63288 | AI25: =-'STEP 2 - Calculator'!$H$68 -> 0 | AJ25: =Table1248[[#This Row],[First of]]+Table1248[[#This Row],[Column3]]+Table1248[[#This Row],[Column4]] -> 186834.3209 | AK25: 2034 | AL25: 86 | AM25: 13 | AN25: =Table1248[[#This Row],[First of]]+Table1245[[#This Row],[First of]]+M25+F25+Table12456[[#This Row],[First of]] -> 331778.3731 | AO25: =G25+N25+Table12456[[#This Row],[Column3]]+Table1245[[#This Row],[Column3]]+Table1248[[#This Row],[Column3]] -> 17558.26412 | AP25: 0 | AQ25: =Table1248[[#This Row],[End of]]+Table1245[[#This Row],[End of]]+Table12456[[#This Row],[End of]]+P25+I25 -> 349336.6372 | AS25: 2032 | AT25: 48 | AU25: 13 | AV25: 0 | AW25: =Table12429[[#This Row],[First of]]*$AW$6 -> 0 | AX25: 0 | AY25: =Table12429[[#This Row],[First of]]+Table12429[[#This Row],[Column3]]+Table12429[[#This Row],[Column4]] -> 0 | AZ25: 2034 | BA25: 86 | BC25: 72000
B26: 2035 | C26: 87 | E26: 14 | F26: 60515.63528 | G26: 302.5781764 | H26: =-'STEP 2 - Calculator'!$H$61 -> 0 | I26: 60818.21345 | J26: 2035 | K26: 87 | L26: 14 | M26: 97617.47346 | N26: 6296.327038 | O26: =-'STEP 2 - Calculator'!$H$62 -> 0 | P26: 103913.8005 | R26: 14 | S26: 4369.207633 | T26: =(Table12456[[#This Row],[First of]]+Table12456[[#This Row],[Column4]])*$T$6 -> 21.84603817 | U26: =-'STEP 2 - Calculator'!$H$65 -> 0 | V26: =Table12456[[#This Row],[First of]]+Table12456[[#This Row],[Column3]]+Table12456[[#This Row],[Column4]] -> 4391.053672 | Y26: 14 | Z26: 0 | AA26: =(Table1245[[#This Row],[First of]]+Table1245[[#This Row],[Column4]])*$AA$6 -> 0 | AB26: =-'STEP 2 - Calculator'!$H$66 -> 0 | AC26: =Table1245[[#This Row],[First of]]+Table1245[[#This Row],[Column3]]+Table1245[[#This Row],[Column4]] -> 0 | AF26: 14 | AG26: 186834.3209 | AH26: =(Table1248[[#This Row],[First of]]+Table1248[[#This Row],[Column4]])*$AH$6 -> 12050.8137 | AI26: =-'STEP 2 - Calculator'!$H$68 -> 0 | AJ26: =Table1248[[#This Row],[First of]]+Table1248[[#This Row],[Column3]]+Table1248[[#This Row],[Column4]] -> 198885.1346 | AK26: 2035 | AL26: 87 | AM26: 14 | AN26: =Table1248[[#This Row],[First of]]+Table1245[[#This Row],[First of]]+M26+F26+Table12456[[#This Row],[First of]] -> 349336.6372 | AO26: =G26+N26+Table12456[[#This Row],[Column3]]+Table1245[[#This Row],[Column3]]+Table1248[[#This Row],[Column3]] -> 18671.56495 | AP26: 0 | AQ26: =Table1248[[#This Row],[End of]]+Table1245[[#This Row],[End of]]+Table12456[[#This Row],[End of]]+P26+I26 -> 368008.2022 | AS26: 2033 | AT26: 49 | AU26: 14 | AV26: 0 | AW26: =Table12429[[#This Row],[First of]]*$AW$6 -> 0 | AX26: 0 | AY26: =Table12429[[#This Row],[First of]]+Table12429[[#This Row],[Column3]]+Table12429[[#This Row],[Column4]] -> 0 | AZ26: 2035 | BA26: 87 | BC26: 72000
B27: 2036 | C27: 88 | E27: 15 | F27: 60818.21345 | G27: 304.0910673 | H27: =-'STEP 2 - Calculator'!$H$61 -> 0 | I27: 61122.30452 | J27: 2036 | K27: 88 | L27: 15 | M27: 103913.8005 | N27: 6702.440132 | O27: =-'STEP 2 - Calculator'!$H$62 -> 0 | P27: 110616.2406 | R27: 15 | S27: 4391.053672 | T27: =(Table12456[[#This Row],[First of]]+Table12456[[#This Row],[Column4]])*$T$6 -> 21.95526836 | U27: =-'STEP 2 - Calculator'!$H$65 -> 0 | V27: =Table12456[[#This Row],[First of]]+Table12456[[#This Row],[Column3]]+Table12456[[#This Row],[Column4]] -> 4413.00894 | Y27: 15 | Z27: 0 | AA27: =(Table1245[[#This Row],[First of]]+Table1245[[#This Row],[Column4]])*$AA$6 -> 0 | AB27: =-'STEP 2 - Calculator'!$H$66 -> 0 | AC27: =Table1245[[#This Row],[First of]]+Table1245[[#This Row],[Column3]]+Table1245[[#This Row],[Column4]] -> 0 | AF27: 15 | AG27: 198885.1346 | AH27: =(Table1248[[#This Row],[First of]]+Table1248[[#This Row],[Column4]])*$AH$6 -> 12828.09118 | AI27: =-'STEP 2 - Calculator'!$H$68 -> 0 | AJ27: =Table1248[[#This Row],[First of]]+Table1248[[#This Row],[Column3]]+Table1248[[#This Row],[Column4]] -> 211713.2257 | AK27: 2036 | AL27: 88 | AM27: 15 | AN27: =Table1248[[#This Row],[First of]]+Table1245[[#This Row],[First of]]+M27+F27+Table12456[[#This Row],[First of]] -> 368008.2022 | AO27: =G27+N27+Table12456[[#This Row],[Column3]]+Table1245[[#This Row],[Column3]]+Table1248[[#This Row],[Column3]] -> 19856.57765 | AP27: 0 | AQ27: =Table1248[[#This Row],[End of]]+Table1245[[#This Row],[End of]]+Table12456[[#This Row],[End of]]+P27+I27 -> 387864.7798 | AS27: 2034 | AT27: 50 | AU27: 15 | AV27: 0 | AW27: =Table12429[[#This Row],[First of]]*$AW$6 -> 0 | AX27: 0 | AY27: =Table12429[[#This Row],[First of]]+Table12429[[#This Row],[Column3]]+Table12429[[#This Row],[Column4]] -> 0 | AZ27: 2036 | BA27: 88 | BC27: 72000
B28: 2037 | C28: 89 | E28: 16 | F28: 61122.30452 | G28: 305.6115226 | H28: =-'STEP 2 - Calculator'!$H$61 -> 0 | I28: 61427.91604 | J28: 2037 | K28: 89 | L28: 16 | M28: 110616.2406 | N28: 7134.747521 | O28: =-'STEP 2 - Calculator'!$H$62 -> 0 | P28: =M28+N28+O28 -> 117750.9882 | R28: 16 | S28: 4413.00894 | T28: =(Table12456[[#This Row],[First of]]+Table12456[[#This Row],[Column4]])*$T$6 -> 22.0650447 | U28: =-'STEP 2 - Calculator'!$H$65 -> 0 | V28: =Table12456[[#This Row],[First of]]+Table12456[[#This Row],[Column3]]+Table12456[[#This Row],[Column4]] -> 4435.073985 | Y28: 16 | Z28: 0 | AA28: =(Table1245[[#This Row],[First of]]+Table1245[[#This Row],[Column4]])*$AA$6 -> 0 | AB28: =-'STEP 2 - Calculator'!$H$66 -> 0 | AC28: =Table1245[[#This Row],[First of]]+Table1245[[#This Row],[Column3]]+Table1245[[#This Row],[Column4]] -> 0 | AF28: 16 | AG28: 211713.2257 | AH28: =(Table1248[[#This Row],[First of]]+Table1248[[#This Row],[Column4]])*$AH$6 -> 13655.50306 | AI28: =-'STEP 2 - Calculator'!$H$68 -> 0 | AJ28: =Table1248[[#This Row],[First of]]+Table1248[[#This Row],[Column3]]+Table1248[[#This Row],[Column4]] -> 225368.7288 | AK28: 2037 | AL28: 89 | AM28: 16 | AN28: =Table1248[[#This Row],[First of]]+Table1245[[#This Row],[First of]]+M28+F28+Table12456[[#This Row],[First of]] -> 387864.7798 | AO28: =G28+N28+Table12456[[#This Row],[Column3]]+Table1245[[#This Row],[Column3]]+Table1248[[#This Row],[Column3]] -> 21117.92715 | AP28: 0 | AQ28: =Table1248[[#This Row],[End of]]+Table1245[[#This Row],[End of]]+Table12456[[#This Row],[End of]]+P28+I28 -> 408982.707 | AS28: 2035 | AT28: 51 | AU28: 16 | AV28: 0 | AW28: =Table12429[[#This Row],[First of]]*$AW$6 -> 0 | AX28: 0 | AY28: =Table12429[[#This Row],[First of]]+Table12429[[#This Row],[Column3]]+Table12429[[#This Row],[Column4]] -> 0 | AZ28: 2037 | BA28: 89 | BC28: 72000
B29: 2038 | C29: 90 | E29: 17 | F29: 61427.91604 | G29: 307.1395802 | H29: =-'STEP 2 - Calculator'!$H$61 -> 0 | I29: 61735.05562 | J29: 2038 | K29: 90 | L29: 17 | M29: 117750.9882 | N29: 7594.938736 | O29: =-'STEP 2 - Calculator'!$H$62 -> 0 | P29: 125345.9269 | R29: 17 | S29: 4435.073985 | T29: =(Table12456[[#This Row],[First of]]+Table12456[[#This Row],[Column4]])*$T$6 -> 22.17536992 | U29: =-'STEP 2 - Calculator'!$H$65 -> 0 | V29: =Table12456[[#This Row],[First of]]+Table12456[[#This Row],[Column3]]+Table12456[[#This Row],[Column4]] -> 4457.249355 | Y29: 17 | Z29: 0 | AA29: =(Table1245[[#This Row],[First of]]+Table1245[[#This Row],[Column4]])*$AA$6 -> 0 | AB29: =-'STEP 2 - Calculator'!$H$66 -> 0 | AC29: =Table1245[[#This Row],[First of]]+Table1245[[#This Row],[Column3]]+Table1245[[#This Row],[Column4]] -> 0 | AF29: 17 | AG29: 225368.7288 | AH29: =(Table1248[[#This Row],[First of]]+Table1248[[#This Row],[Column4]])*$AH$6 -> 14536.28301 | AI29: =-'STEP 2 - Calculator'!$H$68 -> 0 | AJ29: =Table1248[[#This Row],[First of]]+Table1248[[#This Row],[Column3]]+Table1248[[#This Row],[Column4]] -> 239905.0118 | AK29: 2038 | AL29: 90 | AM29: 17 | AN29: =Table1248[[#This Row],[First of]]+Table1245[[#This Row],[First of]]+M29+F29+Table12456[[#This Row],[First of]] -> 408982.707 | AO29: =G29+N29+Table12456[[#This Row],[Column3]]+Table1245[[#This Row],[Column3]]+Table1248[[#This Row],[Column3]] -> 22460.53669 | AP29: 0 | AQ29: =Table1248[[#This Row],[End of]]+Table1245[[#This Row],[End of]]+Table12456[[#This Row],[End of]]+P29+I29 -> 431443.2437 | AS29: 2036 | AT29: 52 | AU29: 17 | AV29: 0 | AW29: =Table12429[[#This Row],[First of]]*$AW$6 -> 0 | AX29: 0 | AY29: =Table12429[[#This Row],[First of]]+Table12429[[#This Row],[Column3]]+Table12429[[#This Row],[Column4]] -> 0 | AZ29: 2038 | BA29: 90 | BC29: 72000
B30: 2039 | C30: 91 | E30: 18 | F30: 61735.05562 | G30: 308.6752781 | H30: =-'STEP 2 - Calculator'!$H$61 -> 0 | I30: 62043.7309 | J30: 2039 | K30: 91 | L30: 18 | M30: 125345.9269 | N30: 8084.812284 | O30: =-'STEP 2 - Calculator'!$H$62 -> 0 | P30: 133430.7392 | R30: 18 | S30: 4457.249355 | T30: =(Table12456[[#This Row],[First of]]+Table12456[[#This Row],[Column4]])*$T$6 -> 22.28624677 | U30: =-'STEP 2 - Calculator'!$H$65 -> 0 | V30: =Table12456[[#This Row],[First of]]+Table12456[[#This Row],[Column3]]+Table12456[[#This Row],[Column4]] -> 4479.535601 | Y30: 18 | Z30: 0 | AA30: =(Table1245[[#This Row],[First of]]+Table1245[[#This Row],[Column4]])*$AA$6 -> 0 | AB30: =-'STEP 2 - Calculator'!$H$66 -> 0 | AC30: =Table1245[[#This Row],[First of]]+Table1245[[#This Row],[Column3]]+Table1245[[#This Row],[Column4]] -> 0 | AF30: 18 | AG30: 239905.0118 | AH30: =(Table1248[[#This Row],[First of]]+Table1248[[#This Row],[Column4]])*$AH$6 -> 15473.87326 | AI30: =-'STEP 2 - Calculator'!$H$68 -> 0 | AJ30: =Table1248[[#This Row],[First of]]+Table1248[[#This Row],[Column3]]+Table1248[[#This Row],[Column4]] -> 255378.8851 | AK30: 2039 | AL30: 91 | AM30: 18 | AN30: =Table1248[[#This Row],[First of]]+Table1245[[#This Row],[First of]]+M30+F30+Table12456[[#This Row],[First of]] -> 431443.2437 | AO30: =G30+N30+Table12456[[#This Row],[Column3]]+Table1245[[#This Row],[Column3]]+Table1248[[#This Row],[Column3]] -> 23889.64707 | AP30: 0 | AQ30: =Table1248[[#This Row],[End of]]+Table1245[[#This Row],[End of]]+Table12456[[#This Row],[End of]]+P30+I30 -> 455332.8908 | AS30: 2037 | AT30: 53 | AU30: 18 | AV30: 0 | AW30: =Table12429[[#This Row],[First of]]*$AW$6 -> 0 | AX30: 0 | AY30: =Table12429[[#This Row],[First of]]+Table12429[[#This Row],[Column3]]+Table12429[[#This Row],[Column4]] -> 0 | AZ30: 2039 | BA30: 91 | BC30: 72000
B31: 2040 | C31: 92 | E31: 19 | F31: 62043.7309 | G31: 310.2186545 | H31: =-'STEP 2 - Calculator'!$H$61 -> 0 | I31: 62353.94956 | J31: 2040 | K31: 92 | L31: 19 | M31: 133430.7392 | N31: 8606.282677 | O31: =-'STEP 2 - Calculator'!$H$62 -> 0 | P31: 142037.0218 | R31: =R30+1 -> 19 | S31: 4479.535601 | T31: =(Table12456[[#This Row],[First of]]+Table12456[[#This Row],[Column4]])*$T$6 -> 22.39767801 | U31: =-'STEP 2 - Calculator'!$H$65 -> 0 | V31: =Table12456[[#This Row],[First of]]+Table12456[[#This Row],[Column3]]+Table12456[[#This Row],[Column4]] -> 4501.933279 | Y31: =Y30+1 -> 19 | Z31: 0 | AA31: =(Table1245[[#This Row],[First of]]+Table1245[[#This Row],[Column4]])*$AA$6 -> 0 | AB31: =-'STEP 2 - Calculator'!$H$66 -> 0 | AC31: =Table1245[[#This Row],[First of]]+Table1245[[#This Row],[Column3]]+Table1245[[#This Row],[Column4]] -> 0 | AF31: =AF30+1 -> 19 | AG31: 255378.8851 | AH31: =(Table1248[[#This Row],[First of]]+Table1248[[#This Row],[Column4]])*$AH$6 -> 16471.93809 | AI31: =-'STEP 2 - Calculator'!$H$68 -> 0 | AJ31: =Table1248[[#This Row],[First of]]+Table1248[[#This Row],[Column3]]+Table1248[[#This Row],[Column4]] -> 271850.8232 | AK31: =AK30+1 -> 2040 | AL31: 92 | AM31: 19 | AN31: =Table1248[[#This Row],[First of]]+Table1245[[#This Row],[First of]]+M31+F31+Table12456[[#This Row],[First of]] -> 455332.8908 | AO31: =G31+N31+Table12456[[#This Row],[Column3]]+Table1245[[#This Row],[Column3]]+Table1248[[#This Row],[Column3]] -> 25410.8371 | AP31: 0 | AQ31: =Table1248[[#This Row],[End of]]+Table1245[[#This Row],[End of]]+Table12456[[#This Row],[End of]]+P31+I31 -> 480743.7279 | AS31: =AS30+1 -> 2038 | AT31: 54 | AU31: 19 | AV31: 0 | AW31: =Table12429[[#This Row],[First of]]*$AW$6 -> 0 | AX31: 0 | AY31: =Table12429[[#This Row],[First of]]+Table12429[[#This Row],[Column3]]+Table12429[[#This Row],[Column4]] -> 0 | AZ31: =AZ30+1 -> 2040 | BA31: 92 | BC31: 72000
B32: =B31+1 -> 2041 | C32: 93 | E32: 20 | F32: 62353.94956 | G32: 311.7697478 | H32: =-'STEP 2 - Calculator'!$H$61 -> 0 | I32: 62665.7193 | J32: =J31+1 -> 2041 | K32: 93 | L32: 20 | M32: 142037.0218 | N32: 9161.387909 | O32: =-'STEP 2 - Calculator'!$H$62 -> 0 | P32: 151198.4098 | R32: 20 | S32: 4501.933279 | T32: =(Table12456[[#This Row],[First of]]+Table12456[[#This Row],[Column4]])*$T$6 -> 22.5096664 | U32: =-'STEP 2 - Calculator'!$H$65 -> 0 | V32: =Table12456[[#This Row],[First of]]+Table12456[[#This Row],[Column3]]+Table12456[[#This Row],[Column4]] -> 4524.442946 | Y32: 20 | Z32: 0 | AA32: =(Table1245[[#This Row],[First of]]+Table1245[[#This Row],[Column4]])*$AA$6 -> 0 | AB32: =-'STEP 2 - Calculator'!$H$66 -> 0 | AC32: =Table1245[[#This Row],[First of]]+Table1245[[#This Row],[Column3]]+Table1245[[#This Row],[Column4]] -> 0 | AF32: 20 | AG32: 271850.8232 | AH32: =(Table1248[[#This Row],[First of]]+Table1248[[#This Row],[Column4]])*$AH$6 -> 17534.37809 | AI32: =-'STEP 2 - Calculator'!$H$68 -> 0 | AJ32: =Table1248[[#This Row],[First of]]+Table1248[[#This Row],[Column3]]+Table1248[[#This Row],[Column4]] -> 289385.2013 | AK32: 2041 | AL32: 93 | AM32: 20 | AN32: =Table1248[[#This Row],[First of]]+Table1245[[#This Row],[First of]]+M32+F32+Table12456[[#This Row],[First of]] -> 480743.7279 | AO32: =G32+N32+Table12456[[#This Row],[Column3]]+Table1245[[#This Row],[Column3]]+Table1248[[#This Row],[Column3]] -> 27030.04542 | AP32: 0 | AQ32: =Table1248[[#This Row],[End of]]+Table1245[[#This Row],[End of]]+Table12456[[#This Row],[End of]]+P32+I32 -> 507773.7733 | AS32: 2039 | AT32: 55 | AU32: 20 | AV32: 0 | AW32: =Table12429[[#This Row],[First of]]*$AW$6 -> 0 | AX32: 0 | AY32: =Table12429[[#This Row],[First of]]+Table12429[[#This Row],[Column3]]+Table12429[[#This Row],[Column4]] -> 0 | AZ32: 2041 | BA32: 93 | BC32: 72000
B33: 2042 | C33: 94 | E33: 21 | F33: 62665.7193 | G33: 313.3285965 | H33: =-'STEP 2 - Calculator'!$H$61 -> 0 | I33: 62979.0479 | J33: 2042 | K33: 94 | L33: 21 | M33: 151198.4098 | N33: 9752.297429 | O33: =-'STEP 2 - Calculator'!$H$62 -> 0 | P33: 160950.7072 | R33: 21 | S33: 4524.442946 | T33: =(Table12456[[#This Row],[First of]]+Table12456[[#This Row],[Column4]])*$T$6 -> 22.62221473 | U33: =-'STEP 2 - Calculator'!$H$65 -> 0 | V33: =Table12456[[#This Row],[First of]]+Table12456[[#This Row],[Column3]]+Table12456[[#This Row],[Column4]] -> 4547.06516 | Y33: 21 | Z33: 0 | AA33: =(Table1245[[#This Row],[First of]]+Table1245[[#This Row],[Column4]])*$AA$6 -> 0 | AB33: =-'STEP 2 - Calculator'!$H$66 -> 0 | AC33: =Table1245[[#This Row],[First of]]+Table1245[[#This Row],[Column3]]+Table1245[[#This Row],[Column4]] -> 0 | AF33: 21 | AG33: 289385.2013 | AH33: =(Table1248[[#This Row],[First of]]+Table1248[[#This Row],[Column4]])*$AH$6 -> 18665.34548 | AI33: =-'STEP 2 - Calculator'!$H$68 -> 0 | AJ33: =Table1248[[#This Row],[First of]]+Table1248[[#This Row],[Column3]]+Table1248[[#This Row],[Column4]] -> 308050.5467 | AK33: 2042 | AL33: 94 | AM33: 21 | AN33: =Table1248[[#This Row],[First of]]+Table1245[[#This Row],[First of]]+M33+F33+Table12456[[#This Row],[First of]] -> 507773.7733 | AO33: =G33+N33+Table12456[[#This Row],[Column3]]+Table1245[[#This Row],[Column3]]+Table1248[[#This Row],[Column3]] -> 28753.59372 | AP33: 0 | AQ33: =Table1248[[#This Row],[End of]]+Table1245[[#This Row],[End of]]+Table12456[[#This Row],[End of]]+P33+I33 -> 536527.367 | AS33: 2040 | AT33: 56 | AU33: 21 | AV33: 0 | AW33: =Table12429[[#This Row],[First of]]*$AW$6 -> 0 | AX33: 0 | AY33: =Table12429[[#This Row],[First of]]+Table12429[[#This Row],[Column3]]+Table12429[[#This Row],[Column4]] -> 0 | AZ33: 2042 | BA33: 94 | BC33: 72000
B34: 2043 | C34: 95 | E34: 22 | F34: 62979.0479 | G34: 314.8952395 | H34: =-'STEP 2 - Calculator'!$H$61 -> 0 | I34: 63293.94314 | J34: 2043 | K34: 95 | L34: 22 | M34: 160950.7072 | N34: 10381.32061 | O34: =-'STEP 2 - Calculator'!$H$62 -> 0 | P34: 171332.0278 | R34: 22 | S34: 4547.06516 | T34: =(Table12456[[#This Row],[First of]]+Table12456[[#This Row],[Column4]])*$T$6 -> 22.7353258 | U34: =-'STEP 2 - Calculator'!$H$65 -> 0 | V34: =Table12456[[#This Row],[First of]]+Table12456[[#This Row],[Column3]]+Table12456[[#This Row],[Column4]] -> 4569.800486 | Y34: 22 | Z34: 0 | AA34: =(Table1245[[#This Row],[First of]]+Table1245[[#This Row],[Column4]])*$AA$6 -> 0 | AB34: =-'STEP 2 - Calculator'!$H$66 -> 0 | AC34: =Table1245[[#This Row],[First of]]+Table1245[[#This Row],[Column3]]+Table1245[[#This Row],[Column4]] -> 0 | AF34: 22 | AG34: 308050.5467 | AH34: =(Table1248[[#This Row],[First of]]+Table1248[[#This Row],[Column4]])*$AH$6 -> 19869.26026 | AI34: =-'STEP 2 - Calculator'!$H$68 -> 0 | AJ34: =Table1248[[#This Row],[First of]]+Table1248[[#This Row],[Column3]]+Table1248[[#This Row],[Column4]] -> 327919.807 | AK34: 2043 | AL34: 95 | AM34: 22 | AN34: =Table1248[[#This Row],[First of]]+Table1245[[#This Row],[First of]]+M34+F34+Table12456[[#This Row],[First of]] -> 536527.367 | AO34: =G34+N34+Table12456[[#This Row],[Column3]]+Table1245[[#This Row],[Column3]]+Table1248[[#This Row],[Column3]] -> 30588.21144 | AP34: 0 | AQ34: =Table1248[[#This Row],[End of]]+Table1245[[#This Row],[End of]]+Table12456[[#This Row],[End of]]+P34+I34 -> 567115.5784 | AS34: 2041 | AT34: 57 | AU34: 22 | AV34: 0 | AW34: =Table12429[[#This Row],[First of]]*$AW$6 -> 0 | AX34: 0 | AY34: =Table12429[[#This Row],[First of]]+Table12429[[#This Row],[Column3]]+Table12429[[#This Row],[Column4]] -> 0 | AZ34: 2043 | BA34: 95 | BC34: 72000
B35: 2044 | C35: 96 | E35: 23 | F35: 63293.94314 | G35: 316.4697157 | H35: =-'STEP 2 - Calculator'!$H$61 -> 0 | I35: 63610.41285 | J35: 2044 | K35: 96 | L35: 23 | M35: 171332.0278 | N35: 11050.91579 | O35: =-'STEP 2 - Calculator'!$H$62 -> 0 | P35: 182382.9436 | R35: 23 | S35: 4569.800486 | T35: =(Table12456[[#This Row],[First of]]+Table12456[[#This Row],[Column4]])*$T$6 -> 22.84900243 | U35: =-'STEP 2 - Calculator'!$H$65 -> 0 | V35: =Table12456[[#This Row],[First of]]+Table12456[[#This Row],[Column3]]+Table12456[[#This Row],[Column4]] -> 4592.649489 | Y35: 23 | Z35: 0 | AA35: =(Table1245[[#This Row],[First of]]+Table1245[[#This Row],[Column4]])*$AA$6 -> 0 | AB35: =-'STEP 2 - Calculator'!$H$66 -> 0 | AC35: =Table1245[[#This Row],[First of]]+Table1245[[#This Row],[Column3]]+Table1245[[#This Row],[Column4]] -> 0 | AF35: 23 | AG35: 327919.807 | AH35: =(Table1248[[#This Row],[First of]]+Table1248[[#This Row],[Column4]])*$AH$6 -> 21150.82755 | AI35: =-'STEP 2 - Calculator'!$H$68 -> 0 | AJ35: =Table1248[[#This Row],[First of]]+Table1248[[#This Row],[Column3]]+Table1248[[#This Row],[Column4]] -> 349070.6346 | AK35: 2044 | AL35: 96 | AM35: 23 | AN35: =Table1248[[#This Row],[First of]]+Table1245[[#This Row],[First of]]+M35+F35+Table12456[[#This Row],[First of]] -> 567115.5784 | AO35: =G35+N35+Table12456[[#This Row],[Column3]]+Table1245[[#This Row],[Column3]]+Table1248[[#This Row],[Column3]] -> 32541.06206 | AP35: 0 | AQ35: =Table1248[[#This Row],[End of]]+Table1245[[#This Row],[End of]]+Table12456[[#This Row],[End of]]+P35+I35 -> 599656.6405 | AS35: 2042 | AT35: 58 | AU35: 23 | AV35: 0 | AW35: =Table12429[[#This Row],[First of]]*$AW$6 -> 0 | AX35: 0 | AY35: =Table12429[[#This Row],[First of]]+Table12429[[#This Row],[Column3]]+Table12429[[#This Row],[Column4]] -> 0 | AZ35: 2044 | BA35: 96 | BC35: 72000
B36: 2045 | C36: 97 | E36: 24 | F36: 63610.41285 | G36: 318.0520643 | H36: =-'STEP 2 - Calculator'!$H$61 -> 0 | I36: 63928.46492 | J36: 2045 | K36: 97 | L36: 24 | M36: 182382.9436 | N36: 11763.69986 | O36: =-'STEP 2 - Calculator'!$H$62 -> 0 | P36: 194146.6435 | R36: 24 | S36: 4592.649489 | T36: =(Table12456[[#This Row],[First of]]+Table12456[[#This Row],[Column4]])*$T$6 -> 22.96324744 | U36: =-'STEP 2 - Calculator'!$H$65 -> 0 | V36: =Table12456[[#This Row],[First of]]+Table12456[[#This Row],[Column3]]+Table12456[[#This Row],[Column4]] -> 4615.612736 | Y36: 24 | Z36: 0 | AA36: =(Table1245[[#This Row],[First of]]+Table1245[[#This Row],[Column4]])*$AA$6 -> 0 | AB36: =-'STEP 2 - Calculator'!$H$66 -> 0 | AC36: =Table1245[[#This Row],[First of]]+Table1245[[#This Row],[Column3]]+Table1245[[#This Row],[Column4]] -> 0 | AF36: 24 | AG36: 349070.6346 | AH36: =(Table1248[[#This Row],[First of]]+Table1248[[#This Row],[Column4]])*$AH$6 -> 22515.05593 | AI36: =-'STEP 2 - Calculator'!$H$68 -> 0 | AJ36: =Table1248[[#This Row],[First of]]+Table1248[[#This Row],[Column3]]+Table1248[[#This Row],[Column4]] -> 371585.6905 | AK36: 2045 | AL36: 97 | AM36: 24 | AN36: =Table1248[[#This Row],[First of]]+Table1245[[#This Row],[First of]]+M36+F36+Table12456[[#This Row],[First of]] -> 599656.6405 | AO36: =G36+N36+Table12456[[#This Row],[Column3]]+Table1245[[#This Row],[Column3]]+Table1248[[#This Row],[Column3]] -> 34619.7711 | AP36: 0 | AQ36: =Table1248[[#This Row],[End of]]+Table1245[[#This Row],[End of]]+Table12456[[#This Row],[End of]]+P36+I36 -> 634276.4116 | AS36: 2043 | AT36: 59 | AU36: 24 | AV36: 0 | AW36: =Table12429[[#This Row],[First of]]*$AW$6 -> 0 | AX36: 0 | AY36: =Table12429[[#This Row],[First of]]+Table12429[[#This Row],[Column3]]+Table12429[[#This Row],[Column4]] -> 0 | AZ36: 2045 | BA36: 97 | BC36: 72000
B37: 2046 | C37: 98 | E37: 25 | F37: 63928.46492 | G37: 319.6423246 | H37: =-'STEP 2 - Calculator'!$H$61 -> 0 | I37: 64248.10724 | J37: 2046 | K37: 98 | L37: 25 | M37: 194146.6435 | N37: 12522.4585 | O37: =-'STEP 2 - Calculator'!$H$62 -> 0 | P37: 206669.102 | R37: 25 | S37: 4615.612736 | T37: =(Table12456[[#This Row],[First of]]+Table12456[[#This Row],[Column4]])*$T$6 -> 23.07806368 | U37: =-'STEP 2 - Calculator'!$H$65 -> 0 | V37: =Table12456[[#This Row],[First of]]+Table12456[[#This Row],[Column3]]+Table12456[[#This Row],[Column4]] -> 4638.6908 | Y37: 25 | Z37: 0 | AA37: =(Table1245[[#This Row],[First of]]+Table1245[[#This Row],[Column4]])*$AA$6 -> 0 | AB37: =-'STEP 2 - Calculator'!$H$66 -> 0 | AC37: =Table1245[[#This Row],[First of]]+Table1245[[#This Row],[Column3]]+Table1245[[#This Row],[Column4]] -> 0 | AF37: 25 | AG37: 371585.6905 | AH37: =(Table1248[[#This Row],[First of]]+Table1248[[#This Row],[Column4]])*$AH$6 -> 23967.27704 | AI37: =-'STEP 2 - Calculator'!$H$68 -> 0 | AJ37: =Table1248[[#This Row],[First of]]+Table1248[[#This Row],[Column3]]+Table1248[[#This Row],[Column4]] -> 395552.9675 | AK37: 2046 | AL37: 98 | AM37: 25 | AN37: =Table1248[[#This Row],[First of]]+Table1245[[#This Row],[First of]]+M37+F37+Table12456[[#This Row],[First of]] -> 634276.4116 | AO37: =G37+N37+Table12456[[#This Row],[Column3]]+Table1245[[#This Row],[Column3]]+Table1248[[#This Row],[Column3]] -> 36832.45593 | AP37: 0 | AQ37: =Table1248[[#This Row],[End of]]+Table1245[[#This Row],[End of]]+Table12456[[#This Row],[End of]]+P37+I37 -> 671108.8675 | AS37: 2044 | AT37: 60 | AU37: 25 | AV37: 0 | AW37: =Table12429[[#This Row],[First of]]*$AW$6 -> 0 | AX37: 0 | AY37: =Table12429[[#This Row],[First of]]+Table12429[[#This Row],[Column3]]+Table12429[[#This Row],[Column4]] -> 0 | AZ37: 2046 | BA37: 98 | BC37: 72000
B38: 2047 | C38: 99 | E38: 26 | F38: 64248.10724 | G38: 321.2405362 | H38: =-'STEP 2 - Calculator'!$H$61 -> 0 | I38: 64569.34778 | J38: 2047 | K38: 99 | L38: 26 | M38: 206669.102 | N38: 13330.15708 | O38: =-'STEP 2 - Calculator'!$H$62 -> 0 | P38: 219999.259 | R38: 26 | S38: 4638.6908 | T38: =(Table12456[[#This Row],[First of]]+Table12456[[#This Row],[Column4]])*$T$6 -> 23.193454 | U38: =-'STEP 2 - Calculator'!$H$65 -> 0 | V38: =Table12456[[#This Row],[First of]]+Table12456[[#This Row],[Column3]]+Table12456[[#This Row],[Column4]] -> 4661.884254 | Y38: 26 | Z38: 0 | AA38: =(Table1245[[#This Row],[First of]]+Table1245[[#This Row],[Column4]])*$AA$6 -> 0 | AB38: =-'STEP 2 - Calculator'!$H$66 -> 0 | AC38: =Table1245[[#This Row],[First of]]+Table1245[[#This Row],[Column3]]+Table1245[[#This Row],[Column4]] -> 0 | AF38: 26 | AG38: 395552.9675 | AH38: =(Table1248[[#This Row],[First of]]+Table1248[[#This Row],[Column4]])*$AH$6 -> 25513.16641 | AI38: =-'STEP 2 - Calculator'!$H$68 -> 0 | AJ38: =Table1248[[#This Row],[First of]]+Table1248[[#This Row],[Column3]]+Table1248[[#This Row],[Column4]] -> 421066.1339 | AK38: 2047 | AL38: 99 | AM38: 26 | AN38: =Table1248[[#This Row],[First of]]+Table1245[[#This Row],[First of]]+M38+F38+Table12456[[#This Row],[First of]] -> 671108.8675 | AO38: =G38+N38+Table12456[[#This Row],[Column3]]+Table1245[[#This Row],[Column3]]+Table1248[[#This Row],[Column3]] -> 39187.75747 | AP38: 0 | AQ38: =Table1248[[#This Row],[End of]]+Table1245[[#This Row],[End of]]+Table12456[[#This Row],[End of]]+P38+I38 -> 710296.625 | AS38: 2045 | AT38: 61 | AU38: 26 | AV38: 0 | AW38: =Table12429[[#This Row],[First of]]*$AW$6 -> 0 | AX38: 0 | AY38: =Table12429[[#This Row],[First of]]+Table12429[[#This Row],[Column3]]+Table12429[[#This Row],[Column4]] -> 0 | AZ38: 2047 | BA38: 99 | BC38: 72000
B39: 2048 | C39: 100 | E39: 27 | F39: =I38 -> 64569.34778 | G39: =(F39+H39)*$F$6 -> 322.8467389 | H39: =-'STEP 2 - Calculator'!$H$61 -> 0 | I39: =F39+G39+H39 -> 64892.19452 | J39: 2048 | K39: 100 | L39: 27 | M39: 219999.259 | N39: =(M39+O39)*$N$6 -> 14189.95221 | O39: =-'STEP 2 - Calculator'!$H$62 -> 0 | P39: =M39+N39+O39 -> 234189.2112 | R39: 27 | S39: 4661.884254 | T39: =(Table12456[[#This Row],[First of]]+Table12456[[#This Row],[Column4]])*$T$6 -> 23.30942127 | U39: =-'STEP 2 - Calculator'!$H$65 -> 0 | V39: =Table12456[[#This Row],[First of]]+Table12456[[#This Row],[Column3]]+Table12456[[#This Row],[Column4]] -> 4685.193675 | Y39: 27 | Z39: 0 | AA39: =(Table1245[[#This Row],[First of]]+Table1245[[#This Row],[Column4]])*$AA$6 -> 0 | AB39: =-'STEP 2 - Calculator'!$H$66 -> 0 | AC39: =Table1245[[#This Row],[First of]]+Table1245[[#This Row],[Column3]]+Table1245[[#This Row],[Column4]] -> 0 | AF39: 27 | AG39: 421066.1339 | AH39: =(Table1248[[#This Row],[First of]]+Table1248[[#This Row],[Column4]])*$AH$6 -> 27158.76564 | AI39: =-'STEP 2 - Calculator'!$H$68 -> 0 | AJ39: =Table1248[[#This Row],[First of]]+Table1248[[#This Row],[Column3]]+Table1248[[#This Row],[Column4]] -> 448224.8996 | AK39: 2048 | AL39: 100 | AM39: 27 | AN39: =Table1248[[#This Row],[First of]]+Table1245[[#This Row],[First of]]+M39+F39+Table12456[[#This Row],[First of]] -> 710296.625 | AO39: =G39+N39+Table12456[[#This Row],[Column3]]+Table1245[[#This Row],[Column3]]+Table1248[[#This Row],[Column3]] -> 41694.87401 | AP39: 0 | AQ39: =Table1248[[#This Row],[End of]]+Table1245[[#This Row],[End of]]+Table12456[[#This Row],[End of]]+P39+I39 -> 751991.499 | AS39: 2046 | AT39: 62 | AU39: 27 | AV39: 0 | AW39: =Table12429[[#This Row],[First of]]*$AW$6 -> 0 | AX39: 0 | AY39: =Table12429[[#This Row],[First of]]+Table12429[[#This Row],[Column3]]+Table12429[[#This Row],[Column4]] -> 0 | AZ39: 2048 | BA39: 100 | BC39: 72000
